Cogmind - Beta 9.4 @@@ ROGUE MODE // 2020.03.24 @ 07:09:16 // Winter2019/RPGLIKE Player: IAMCRAIG Result: Escaped! Performance ------------- Evolutions (9) 4500 Regions Visited (28) 5600 Robots Destroyed (453) 2265 Value Destroyed (31305) 31305 Prototype IDs (158) 3160 Alien Tech Used (0) 0 Bonus (19921) 19921 TOTAL SCORE: 66751 Bonus ------- High Alert Combat Kills 5669 Follower Combat Kills 5597 Entered Garrisons 2200 Used RIF Installer 5500 Aligned with FarCom 300 Win 3000 Friendly Fire -2345 Cogmind --------- Core Integrity 1390/1500 Matter 283/300 Energy 354/375 System Corruption 5% Temperature Cool (15) Movement Flying (21) Location To Epsilon Eridani Parts ------- > --- POWER (2) -------- Compact Particle Reactor Graviton Reactor > --- PROPULSION (5) --- Diametric Drive Diametric Drive Cooled Impulse Thruster Improved Q-thruster Improved Q-thruster > --- UTILITY (13) ----- Experimental Power Amplifier Long-range Sensor Array Experimental Signal Interpreter Advanced Reaction Control System Advanced Phase Shifter Advanced Hacking Suite Experimental Hacking Suite Improved System Shield Relay Coupler [C] (4) Relay Coupler [ARC] (32) Relay Coupler [Sentry] (4) Relay Coupler [Hunter] (23) Advanced Dynamic Insulation System > --- WEAPON (5) ------- Enhanced Quantum Rifle Hypervelocity Mass Driver Advanced Remote Datajack Longsword +1 Enhanced Force Lance > --- INVENTORY (7) ---- Backup Power VII Diametric Drive Superbattery (2000) Medium Matter Pod (82) Experimental Force Field Advanced Field Recycling Unit (245) Point Singularity Launcher Peak State ------------ > --- POWER ------------ Compact Particle Reactor Graviton Reactor > --- PROPULSION ------- Diametric Drive Diametric Drive Cooled Impulse Thruster Improved Q-thruster Improved Q-thruster > --- UTILITY ---------- Experimental Power Amplifier Long-range Sensor Array Experimental Signal Interpreter Advanced Reaction Control System Advanced Phase Shifter Advanced Hacking Suite Experimental Hacking Suite Improved System Shield Relay Coupler [C] Relay Coupler [ARC] Relay Coupler [Sentry] Relay Coupler [Hunter] Advanced Dynamic Insulation System > --- WEAPON ----------- Hypervelocity Mass Driver Point Singularity Launcher Advanced Remote Datajack Longsword +1 Enhanced Force Lance > --- INVENTORY -------- Backup Power VII Diametric Drive Superbattery Experimental Force Field Advanced Field Recycling Unit Enhanced Quantum Rifle [Rating: 195] Favorites ----------- Power Cooled Deuterium Engine Engine Cooled Deuterium Engine Power Core Light Nuclear Core Reactor Graviton Reactor Propulsion Improved Cesium-ion Thruster Treads Light Treads Leg Myomer Leg Hover Unit Improved Antigrav System Flight Unit Improved Cesium-ion Thruster Utility Advanced Hacking Suite Device Advanced Sensor Array Storage Superbattery Processor Experimental Signal Interpreter Hackware Advanced Hacking Suite Protection Improved Medium Armor Plating Weapon Longsword +1 Energy Gun Precision Shock Rifle Energy Cannon Cooled Plasma Cannon Ballistic Gun Autogun Ballistic Cannon Hypervelocity Mass Driver Launcher Point Singularity Launcher Special Weapon Advanced Remote Datajack Slashing Weapon Longsword +1 Piercing Weapon Enhanced Force Lance Special Melee Weapon Advanced Datajack Build | -11 -10 -10 -10 -9 -8 -8 -8 -8 -7 -7 -7 -7 -6 -6 -6 -6 -5 -5 -4 -4 -3 -3 -3 -3 -2 -2 -1 -1 ------- Run | Scr Mat Min Exi Min Mat Gar Mat Gar Fac Gar Fac Gar Fac Gar Fac Gar Fac Gar Fac Gar Res Gar Res Gar Res Gar Acc Com Slots Evolved 21 | 3 . 1 . 2 . 2 1 1 2 1 . . 2 . . 1 . . 1 . 1 . . . 1 . 1 1 Power 1 | . . . . . . . . . . . . . 1 . . . . . . . . . . . . . . . Propulsion 4 | . . 1 . . . 1 . . 1 . . . . . . . . . 1 . . . . . . . . . Utility 12 | 3 . . . 1 . 1 . 1 1 1 . . . . . 1 . . . . 1 . . . 1 . 1 . Weapon 4 | . . . . 1 . . 1 . . . . . 1 . . . . . . . . . . . . . . 1 Parts Attached 375 | 12 21 2 2 6 8 6 14 5 23 3 25 5 25 6 3 7 4 19 25 10 37 5 25 7 36 10 17 7 Power 50 | 2 2 1 . . 2 2 2 . 6 . 3 . 8 . 1 . 2 3 3 1 5 . 3 . 1 . . 3 Engine 19 | 2 2 . . . . . 1 . 4 . 3 . 6 . . . . 1 . . . . . . . . . . Core 20 | . . 1 . . 2 2 1 . 2 . . . 2 . 1 . 2 2 3 . 1 . . . 1 . . . Reactor 11 | . . . . . . . . . . . . . . . . . . . . 1 4 . 3 . . . . 3 Propulsion 51 | 3 5 1 . . 3 2 1 . 4 . 6 . . 1 1 . . . 2 . 7 . 3 2 8 1 1 . Treads 3 | 2 1 . . . . . . . . . . . . . . . . . . . . . . . . . . . Leg 2 | 1 . . . . . . . . . . . . . . . . . . . . . . . 1 . . . . Wheel . | . . . . . . . . . . . . . . . . . . . . . . . . . . . . . Hover 3 | . 1 . . . . . . . 1 . . . . . . . . . . . . . . 1 . . . . Flight 43 | . 3 1 . . 3 2 1 . 3 . 6 . . 1 1 . . . 2 . 7 . 3 . 8 1 1 . Utility 189 | 5 12 . 1 5 2 2 4 5 9 3 7 3 6 5 1 7 2 10 12 9 14 5 15 5 21 9 8 2 Device 81 | 3 4 . . 2 1 . 2 . 3 . . . 2 1 . 2 1 3 7 1 11 1 10 . 16 5 4 2 Storage 7 | 1 1 . 1 . . . . . . . . . . . . . 1 1 . . 2 . . . . . . . Processor 13 | 1 4 . . 3 . 1 . . 1 . . . 1 . . . . . 1 . . . 1 . . . . . Hackware 61 | . . . . . 1 1 2 3 1 3 4 2 3 4 . 4 . 4 2 5 1 3 1 5 4 4 4 . Protection 27 | . 3 . . . . . . 2 4 . 3 1 . . 1 1 . 2 2 3 . 1 3 . 1 . . . Artifact . | . . . . . . . . . . . . . . . . . . . . . . . . . . . . . Weapon 85 | 2 2 . 1 1 1 . 7 . 4 . 9 2 11 . . . . 6 8 . 11 . 4 . 6 . 8 2 Energy Gun 18 | 1 2 . . . . . 4 . 2 . 1 1 2 . . . . . . . 2 . . . 1 . 1 1 Energy Cannon 19 | . . . . . . . 1 . 1 . 3 1 8 . . . . . 1 . 4 . . . . . . . Ballistic Gun 7 | 1 . . . . . . 1 . . . . . . . . . . 3 1 . . . . . . . 1 . Ballistic Cannon 12 | . . . . . 1 . . . . . . . . . . . . . 2 . . . 1 . 4 . 4 . Launcher 3 | . . . . . . . . . . . . . . . . . . . . . . . . . . . 2 1 Special Weapon 10 | . . . . . . . . . 1 . 2 . . . . . . . 2 . 2 . 2 . 1 . . . Impact Weapon . | . . . . . . . . . . . . . . . . . . . . . . . . . . . . . Slashing Weapon 6 | . . . 1 1 . . . . . . 1 . . . . . . 3 . . . . . . . . . . Piercing Weapon 3 | . . . . . . . . . . . . . . . . . . . . . 3 . . . . . . . Special Melee Weapon 7 | . . . . . . . 1 . . . 2 . 1 . . . . . 2 . . . 1 . . . . . Unidentified Prototypes 37 | . . . . . 1 . 1 . 2 . 2 . 4 . . . 1 . 2 . 9 . 4 . 9 . 2 . Parts Lost 19 | . . . . . . . 1 . 1 . . . . . . 1 2 5 . 1 . . 5 1 2 . . . Power 3 | . . . . . . . 1 . . . . . . . . . . 2 . . . . . . . . . . Propulsion 1 | . . . . . . . . . . . . . . . . . . . . . . . . 1 . . . . Utility 10 | . . . . . . . . . . . . . . . . 1 2 1 . 1 . . 4 . 1 . . . Weapon 5 | . . . . . . . . . 1 . . . . . . . . 2 . . . . 1 . 1 . . . Highest Loss Streak 4 | . . . . . . . 1 . 1 . . . . . . 1 2 3 . 1 . . 4 1 1 . . . Average Slot Usage (%) 98 | . 98 100 100 94 99 99 98 99 99 99 99 99 99 99 100 99 98 96 98 94 97 100 98 98 97 100 99 100 Engine 3 | . 14 9 . . . . 4 . 2 5 5 5 7 10 5 5 5 4 4 4 . . . 4 . . . . Core 2 | . . 2 12 10 9 9 2 7 3 . . . . . 5 5 5 5 4 2 1 . . . 3 4 4 1 Reactor 1 | . . . . . . . . . . . . . . . . . . . . 2 6 9 8 4 4 4 4 6 Flight 21 | . 9 25 25 20 20 20 23 21 25 23 23 23 21 21 21 20 20 20 21 23 22 22 21 18 18 21 20 20 Device 10 | . 23 37 31 20 20 13 5 . 3 5 5 5 5 5 5 3 5 6 4 5 10 12 13 21 17 15 13 19 Processor 8 | . 16 12 12 14 16 13 15 14 12 11 11 11 10 10 10 10 10 10 5 4 4 4 4 4 4 4 4 4 Hackware 25 | . . . . . 3 13 17 28 25 27 29 29 26 25 26 27 28 23 33 31 31 31 27 22 27 31 33 29 Protection 3 | . 13 . . . . . . 5 5 5 4 5 5 5 5 4 5 8 4 3 . . 2 . . . . . Energy Gun 1 | . 14 12 9 . . . 6 7 5 5 1 . . . . . . . . . . . . . . . . 1 Energy Cannon 2 | . . . . . . . . . . . 3 4 10 10 10 10 10 2 . 4 1 . . . . . . . Ballistic Cannon 1 | . . . . . 8 9 3 . . . . . . . . . . . 2 . . . . 4 3 4 2 4 Special Weapon 2 | . . . . . . . . . 3 5 2 . . . . . . . 4 4 4 4 5 4 4 4 4 4 Slashing Weapon 4 | . . . 2 19 11 9 7 7 6 5 5 5 5 5 5 5 5 5 4 4 4 4 4 4 4 4 4 4 Piercing Weapon 1 | . . . . . . . . . . . . . . . . . . . . . 5 9 4 4 4 4 4 4 Special Melee Weapon 2 | . . . . . . . 1 7 2 . 2 5 5 5 5 5 5 5 3 . . . 1 . . . . . Naked Turns . | . . . . . . . . . . . . . . . . . . . . . . . . . . . . . Heaviest Build 77 | 11 12 8 13 16 23 23 27 20 29 29 32 32 47 47 47 46 42 45 51 57 62 69 76 59 68 68 72 77 Greatest Support 88 | 25 25 15 27 27 28 32 34 33 40 39 47 47 47 47 47 47 47 47 61 61 74 70 70 70 88 87 79 79 Greatest Overweight (x) 2 | 1 1 . . . . . . . . 1 . 1 . 1 . . . . . . 1 . 1 . 1 2 . . Average Overweight (x) . | . . . . . . . . . . . . . . . . . . . . . . . . . . . . . Largest Inventory Capacity 7 | 1 1 2 2 2 2 3 3 4 4 4 5 5 5 5 5 5 5 5 6 6 6 6 6 6 6 7 7 7 Average Capacity 4 | 1 1 1 2 2 2 2 3 3 4 4 4 5 5 5 5 5 5 5 5 6 6 6 6 6 6 6 7 7 Most Carried 7 | 1 1 2 2 2 2 3 3 4 4 4 4 5 5 5 5 5 5 5 6 6 6 6 6 6 6 7 7 7 Average Carried 4 | . . 1 1 1 1 2 3 3 3 3 3 4 4 4 5 5 5 4 5 5 5 5 5 5 5 6 6 6 Final Capacity 7 | 1 1 2 2 2 2 3 3 4 4 4 5 5 5 5 5 5 5 5 6 6 6 6 6 6 6 7 7 7 Final Carried 7 | 1 1 2 2 2 2 3 3 4 4 4 4 5 5 5 5 5 5 5 6 6 6 6 6 6 6 7 7 7 Class Distribution -------------------- 38% | Hacker-Sprinter 36% | Botlord-Sprinter 8% | Wizard-Sprinter 4% | Bothacker-Sprinter 4% | Mutant Dominant Class ---------------- Mutant | -10/Materials Mutant | -10/Mines Mutant | -10/Exiles Scavenger-Scout | -9/Mines Hacker-Sprinter | -8/Materials Hacker-Sprinter | -8/Garrison Hacker-Sprinter | -8/Materials Hacker-Sprinter | -8/Garrison Hacker-Sprinter | -7/Factory Hacker-Sprinter | -7/Garrison Hacker-Sprinter | -7/Factory Bothacker-Sprinter | -7/Garrison Hacker-Sprinter | -6/Factory Hacker-Sprinter | -6/Garrison Hacker-Sprinter | -6/Factory Hacker-Sprinter | -6/Garrison Botlord-Sprinter | -5/Factory Botlord-Sprinter | -5/Garrison Botlord-Sprinter | -4/Factory Wizard-Sprinter | -4/Garrison Wizard-Sprinter | -3/Research Wizard-Sprinter | -3/Garrison Botlord-Sprinter | -3/Research Botlord-Sprinter | -3/Garrison Botlord-Sprinter | -2/Research Botlord-Sprinter | -2/Garrison Botlord-Sprinter | -1/Access Botlord-Sprinter | -1/Command Resources | -11 -10 -10 -10 -9 -8 -8 -8 -8 -7 -7 -7 -7 -6 -6 -6 -6 -5 -5 -4 -4 -3 -3 -3 -3 -2 -2 -1 -1 ----------- Run | Scr Mat Min Exi Min Mat Gar Mat Gar Fac Gar Fac Gar Fac Gar Fac Gar Fac Gar Fac Gar Res Gar Res Gar Res Gar Acc Com Matter Collected 8492 | 397 178 40 10 80 143 263 147 50 320 120 500 50 250 60 30 55 20 260 411 339 645 90 137 626 1347 446 1190 288 Remotely . | . . . . . . . . . . . . . . . . . . . . . . . . . . . . . Salvage Created 22631 | 216 546 123 . 22 287 1036 1123 1206 262 1274 965 875 2177 847 354 821 151 655 645 774 1573 843 770 500 1797 825 1221 743 Parts 1082 | 17 24 9 . 7 12 55 71 41 26 60 45 68 85 17 6 18 14 32 50 29 91 49 60 18 73 43 31 31 Haulers Intercepted 35 | . 2 . . . 1 . 4 . . . 3 . 8 . 1 . . . . . 6 . 1 . 5 . 4 . Recyclers Shooed 3 | . 2 1 . . . . . . . . . . . . . . . . . . . . . . . . . . Parts Field Recycled 38 | . . . . . . . . . . . . . . . . . . . . . . . . . . . 29 9 Retrieved Matter 1175 | . . . . . . . . . . . . . . . . . . . . . . . . . . . 989 186 Parts Self-Destructed . | . . . . . . . . . . . . . . . . . . . . . . . . . . . . . Prevented . | . . . . . . . . . . . . . . . . . . . . . . . . . . . . . Kills | -11 -10 -10 -10 -9 -8 -8 -8 -8 -7 -7 -7 -7 -6 -6 -6 -6 -5 -5 -4 -4 -3 -3 -3 -3 -2 -2 -1 -1 ------- Run | Scr Mat Min Exi Min Mat Gar Mat Gar Fac Gar Fac Gar Fac Gar Fac Gar Fac Gar Fac Gar Res Gar Res Gar Res Gar Acc Com Combat Hostiles Destroyed 349 | . 7 2 . 6 2 22 19 22 9 19 13 26 22 11 3 15 6 14 11 13 17 16 12 6 14 9 22 11 Melee 240 | . . . . 6 2 19 19 19 8 13 8 24 18 8 1 4 4 11 3 7 16 16 12 . 7 4 5 6 Guns 23 | . 6 2 . . . . . 3 . 5 3 . . . . . . 2 2 . . . . . . . . . Cannons 62 | . . . . . . 3 . . . . 2 2 4 2 1 11 1 1 3 2 1 . . 6 7 5 6 5 AOE 13 | . . . . . . . . . . . . . . . . . 1 . 1 . . . . . . . 11 . Classes Destroyed 20 | 3 5 . . 3 2 3 1 . . . 1 1 . 1 . . . . . . . . . . . . . . Worker 9 | 2 1 . . 1 . . 1 . . . . . . . . . . . . . . . . . . . 3 1 Builder 3 | . . . . . 1 . . . . . . . 1 . . . . . . . . . . . . . 1 . Tunneler 5 | 5 . . . . . . . . . . . . . . . . . . . . . . . . . . . . Hauler 35 | . 2 . . . 1 . 4 . . . 3 . 8 . 1 . . . . . 6 . 1 . 5 . 4 . Recycler 5 | 1 3 1 . . . . . . . . . . . . . . . . . . . . . . . . . . Mechanic 6 | . 1 . . . . . 1 . . . . . 3 . . . . . . . . . . . . . 1 . Operator 2 | . . . . . . . 1 . . . . . . . . . . . 1 . . . . . . . . . Drone 2 | . . . . . . 1 . . . . . . . . . . . . . . . . . . . . . 1 Watcher 32 | . 1 . . . 2 . 4 . . 1 3 . 5 . . . . . 2 . 1 . 3 . 7 . 1 2 Swarmer 57 | . 6 . . . . 7 . 3 4 6 . 2 3 1 . . 3 5 . 4 6 1 1 . . . 4 1 Grunt 130 | . 1 2 . 1 1 6 10 13 . 7 7 16 6 8 3 10 . 7 2 5 1 8 . 2 5 2 4 3 Brawler 7 | . . . . . . 1 1 . . 2 . 1 . . . . . . . . . . 1 . . . . 1 Duelist 8 | . . . . 1 . . 1 1 . . . . 1 . . 1 . . . 1 . 2 . . . . . . Sentry 74 | . . . . . 1 5 6 4 4 3 4 6 9 2 . 2 1 1 3 2 3 1 4 1 5 . 4 3 Demolisher 2 | . . . . 2 . . . . . . . . . . . . . . . . . . . . . . . . Specialist 6 | . . . . . . . . . . . . 1 . . . . . . . . . . . . . 5 . . Hunter 29 | . . . . . . 2 1 1 1 1 1 . 1 . . 2 2 1 2 2 . 2 2 1 1 1 4 1 Programmer 36 | . . . . . . . . . . . 1 . 2 . . . . . 4 . 7 2 4 2 4 2 8 . Behemoth 1 | . . . . . . . . . . . . . . 1 . . . . . . . . . . . . . . Assembled 2 | . . . . 2 . . . . . . . . . . . . . . . . . . . . . . . . Thug 1 | . . . . . . . . . . . . . . . . . . . . . . . . . . . . 1 Guerrilla 1 | . . . . . . . . . . . . . . . . . . . . . . . . . . . . 1 Best Kill Streak 10 | 4 3 2 . 2 2 5 5 4 4 8 3 10 8 2 3 5 5 4 2 5 5 6 5 3 5 3 9 4 Combat Bots Only 10 | . 3 1 . 2 1 5 4 4 4 8 3 10 7 2 3 5 5 4 2 5 5 6 5 3 3 3 6 4 Max Kills in Single Turn 4 | 1 1 1 . 1 1 1 1 1 1 1 1 1 1 1 1 1 1 1 1 1 1 2 1 1 1 1 4 1 Gunslinging . | . . . . . . . . . . . . . . . . . . . . . . . . . . . . . Exploded 3 | . . . . . . . . . . . . . . . . . 1 . 1 . . . . . . . 3 . Melee 2 | . . . . 1 1 1 1 1 1 1 1 1 1 1 1 1 1 1 1 1 1 2 1 . 1 1 1 1 Uniques/NPCs Destroyed . | . . . . . . . . . . . . . . . . . . . . . . . . . . . . . Combat | -11 -10 -10 -10 -9 -8 -8 -8 -8 -7 -7 -7 -7 -6 -6 -6 -6 -5 -5 -4 -4 -3 -3 -3 -3 -2 -2 -1 -1 -------- Run | Scr Mat Min Exi Min Mat Gar Mat Gar Fac Gar Fac Gar Fac Gar Fac Gar Fac Gar Fac Gar Res Gar Res Gar Res Gar Acc Com Damage Taken 25252 | 34 288 166 . 422 266 824 891 857 782 1281 829 1688 883 671 178 1446 897 864 1803 970 685 1354 2865 344 975 415 1902 672 Core 18757 | 26 187 149 . 360 223 684 765 608 493 856 586 1139 645 465 133 1029 670 620 1258 684 564 1123 1945 284 806 337 1564 554 Absorbed by Shields 440 | . . . . . . 43 . 5 . 116 . . . 59 . 20 . 11 . 55 . . . 14 94 14 . 9 Redirected to Core 14172 | 26 151 55 . 219 154 479 458 409 369 667 331 844 471 373 133 805 548 532 955 616 410 764 1743 202 579 247 1209 423 Core Remaining (%) 75 | 95 . . . 64 . . . 99 . . . 100 . . . 77 . 45 . 40 . . . 50 . 93 . 92 Volleys Fired 932 | 26 67 22 . . 9 29 5 43 27 53 76 18 24 19 7 28 6 7 46 53 35 5 7 39 93 40 103 45 Largest 2 | 1 1 1 . . 1 1 2 1 1 1 1 1 2 2 2 2 2 2 1 1 1 1 1 1 1 1 1 1 Hottest 210 | 40 50 50 . . 57 57 105 55 69 55 80 90 180 210 70 70 210 70 110 110 110 50 66 66 66 66 66 94 Shots Fired 1013 | 26 67 22 . . 9 29 7 43 27 53 76 18 47 35 14 56 7 12 46 53 35 5 8 38 93 40 102 45 Gun 227 | 26 67 22 . . . . 6 43 4 35 8 . . . . . . 10 4 . . . . . . . . 2 Cannon 451 | . . . . . 9 29 1 . 4 . 18 18 47 35 14 56 7 2 25 24 7 . 2 22 31 26 35 39 Launcher 19 | . . . . . . . . . . . . . . . . . . . . . . . . . . . 19 . Special 316 | . . . . . . . . . 19 18 50 . . . . . . . 17 29 28 5 6 16 62 14 48 4 Kinetic 215 | . . . . . 9 29 1 . . . . . . . . . . 10 11 . . . 2 22 31 26 35 39 Thermal 232 | . 11 22 . . . . . . . . 18 18 47 35 14 56 7 2 . . . . . . . . . 2 Explosive 19 | . . . . . . . . . . . . . . . . . . . . . . . . . . . 19 . Electromagnetic 231 | 26 56 . . . . . 6 43 8 35 8 . . . . . . . 18 24 7 . . . . . . . Robot Hit Streak 32 | 4 5 7 . . 1 6 5 8 25 32 25 8 14 23 12 20 2 4 14 20 10 4 9 15 27 15 19 16 Robot Miss Streak 5 | 4 3 4 . . 4 5 5 2 1 1 4 1 3 2 . 2 . 1 4 3 1 1 . 2 2 1 2 3 Penetration Max 1 | . . . . . 1 . . . . . . . . . . . . . 1 . . . . 1 . 1 1 1 Secondary Targets . | . . . . . . . . . . . . . . . . . . . . . . . . . . . . . Shots Hit Robots 1652 | 14 35 13 . 16 11 60 89 71 62 73 99 73 142 61 39 68 15 51 72 60 74 40 52 34 125 53 108 42 Core Hits 563 | 9 19 8 . 7 6 24 31 31 12 28 20 28 41 18 6 21 5 20 19 15 26 21 22 9 32 18 49 18 Critical Hits 161 | . . . . . 3 10 3 1 . . 3 2 1 3 . 2 2 2 8 1 7 3 2 11 25 27 27 18 Critical Kills 61 | . . . . . 1 3 . . . . 2 . . 2 . . 1 1 4 1 4 1 1 5 10 6 12 7 Critical Parts Destroyed 88 | . . . . . 2 6 3 1 . . 1 2 1 1 . 2 1 1 4 . 3 2 . 5 10 20 12 11 Melee Attacks 2048 | . . . . 26 33 92 121 97 57 101 104 111 293 140 56 44 41 64 88 29 86 60 155 7 79 26 82 56 Thermal 3 | . . . . . . . . . . . . . . . . . . 3 . . . . . . . . . . Impact . | . . . . . . . . . . . . . . . . . . . . . . . . . . . . . Slashing 1619 | . . . . 26 33 92 114 74 40 101 92 102 239 126 36 33 35 44 75 29 52 24 93 5 42 9 62 41 Piercing 221 | . . . . . . . . . . . . . . . . . . . . . 34 36 60 2 37 17 20 15 Sneak Attacks 219 | . . . . 1 2 4 10 9 12 5 13 10 55 13 19 1 3 5 13 4 11 2 7 . 7 1 10 2 Combat Hostiles 85 | . . . . . . 4 1 5 . 5 6 10 14 9 . 1 . 5 6 3 6 2 4 . . 1 2 1 Follow-up Attacks 50 | . . . . 2 . . . . . . . . . . . . . 1 . . 5 12 11 1 8 3 4 3 Damage Inflicted 71980 | 393 552 178 . 897 737 3491 4508 2473 1167 2946 2581 3888 7029 3641 892 2697 551 2480 2562 2155 3659 2291 3328 493 4223 2769 7586 1813 Guns 2249 | 223 507 178 . . . . 69 245 38 576 160 . . . . . . 173 80 . . . . . . . . . Cannons 9197 | . . . . . 76 267 . . 98 . 326 324 774 1060 341 1656 68 37 573 800 148 . . 385 580 578 557 549 Explosions 4622 | 168 45 . . . . . . . . . . . . . . . . . 97 . . . . . . . 4312 . Melee 55910 | . . . . 897 661 3224 4439 2228 1031 2370 2095 3564 6255 2581 551 1041 483 2270 1812 1355 3511 2291 3328 108 3643 2191 2717 1264 Ramming 2 | 2 . . . . . . . . . . . . . . . . . . . . . . . . . . . . Kinetic 3453 | . . . . . 76 267 . . . . . . . . . . . 173 288 . . . . 385 580 578 557 549 Thermal 5071 | 168 139 178 . . . . . . . . 326 324 774 1060 341 1656 68 37 . . . . . . . . . . Explosive 4312 | . . . . . . . . . . . . . . . . . . . . . . . . . . . 4312 . Electromagnetic 3232 | 223 413 . . . . . 69 245 136 576 160 . . . . . . . 462 800 148 . . . . . . . Impact . | . . . . . . . . . . . . . . . . . . . . . . . . . . . . . Slashing 42098 | . . . . 897 661 3224 4439 2228 1031 2370 2095 3564 6255 2581 551 1041 483 2270 1812 1355 1490 550 752 . 674 267 785 723 Piercing 13812 | . . . . . . . . . . . . . . . . . . . . . 2021 1741 2576 108 2969 1924 1932 541 Highest Corruption 22 | . . . . . . . . . 1 1 1 1 1 1 1 1 4 4 5 5 2 3 22 17 5 3 5 5 Average Corruption 3 | . . . . . . . . . 1 1 1 1 1 1 1 1 4 2 3 3 1 2 15 9 3 2 3 5 Corruption Purged 53 | . . . . . . . . . . . . . . . . 1 . 4 6 5 1 3 6 18 3 5 1 . Effects 248 | . . . . . . . . . 3 4 11 9 . 6 4 2 1 11 19 5 4 4 51 66 3 6 13 26 Message Errors 63 | . . . . . . . . . 3 3 7 . . 3 2 . 1 3 6 1 3 1 5 15 2 2 1 5 Matter Fused 38 | . . . . . . . . . . . . . . . . . . 1 3 2 . . 5 16 1 . 3 7 Heat Flow Errors 25 | . . . . . . . . . . . . . . . . . . 2 . 1 . 2 6 12 . 1 1 . Energy Discharges 25 | . . . . . . . . . . . 2 2 . 1 . 1 . 1 2 . . 1 1 5 . 2 4 3 Parts Rejected 4 | . . . . . . . . . . . . . . . . . . 1 2 . . . 1 . . . . . Data Loss (minor) 24 | . . . . . . . . . . . 2 3 . . 1 1 . 2 2 1 . . 1 5 . . 2 4 Data Loss (major) 2 | . . . . . . . . . . . . . . . . . . . . . . . . 1 . . . 1 Misfires 2 | . . . . . . . . . . . . . . . . . . . . . . . 1 . . . . 1 Misdirections 26 | . . . . . . . . . . . . . . . . . . . . . . . 19 7 . . . . Targeting Errors 35 | . . . . . . . . . . 1 . 4 . 1 1 . . 1 4 . 1 . 12 4 . 1 1 4 Weapon Failures 4 | . . . . . . . . . . . . . . 1 . . . . . . . . . 1 . . 1 1 Overload Shots 4 | . . . . . . . . . . . . . . 2 . . 2 . . . . . . . . . . . Overflow Damage 5372 | 7 12 . . 48 . 261 511 206 10 156 208 422 1163 219 84 171 3 207 142 162 215 73 122 3 117 206 400 244 Projectiles 241 | . . . . . . . . . . . 6 . 3 . . 140 . . 21 71 . . . . . . . . Explosions 240 | 7 12 . . . . . . . . . . . . . . . . . . . . . . . . . 221 . Melee 4891 | . . . . 48 . 261 511 206 10 156 202 422 1160 219 84 31 3 207 121 91 215 73 122 3 117 206 179 244 Knockbacks 29 | . . . . . 2 . . . . . . . . . . . . . 3 . . . . 6 1 12 2 3 Impact . | . . . . . . . . . . . . . . . . . . . . . . . . . . . . . Kinetic 27 | . . . . . 2 . . . . . . . . . . . . . 3 . . . . 6 1 10 2 3 Secondary 2 | . . . . . . . . . . . . . . . . . . . . . . . . . . 2 . . Self-Inflicted Damage 152 | 35 . . . 95 . . . . . . . . . . . . . . 22 . . . . . . . . . Shots 4 | 1 . . . 2 . . . . . . . . . . . . . . 1 . . . . . . . . . Rammed 1 | 1 . . . . . . . . . . . . . . . . . . . . . . . . . . . . Targets Rammed 1 | 1 . . . . . . . . . . . . . . . . . . . . . . . . . . . . Kicked . | . . . . . . . . . . . . . . . . . . . . . . . . . . . . . Crushed . | . . . . . . . . . . . . . . . . . . . . . . . . . . . . . Highest Temperature 324 | 12 204 205 . 9 10 . 1 2 324 . 14 44 162 117 . 11 84 145 118 151 157 143 188 239 11 233 204 94 Average Temperature 49 | 12 39 104 . 8 4 . 1 2 121 . 4 16 58 60 . 9 48 66 44 38 19 58 79 96 4 85 23 22 Received Heat Transfer 4294 | . 54 90 . 76 135 186 252 366 192 354 240 489 255 189 51 310 . 126 108 149 21 189 120 54 126 9 72 81 Siege Activations . | . . . . . . . . . . . . . . . . . . . . . . . . . . . . . Robots Corrupted 8 | . . . . . . . . . 1 1 . . . . . . . . 2 4 . . . . . . . . Combat Hostiles 8 | . . . . . . . . . 1 1 . . . . . . . . 2 4 . . . . . . . . Parts Fried 14 | 1 . . . . . . . . 2 3 . . . . . . . . 4 3 1 . . . . . . . Impact Corruptions . | . . . . . . . . . . . . . . . . . . . . . . . . . . . . . Robots Melted 3 | . 1 . . . . . . . . . . . . 1 1 . . . . . . . . . . . . . Combat Hostiles 3 | . 1 . . . . . . . . . . . . 1 1 . . . . . . . . . . . . . Parts Melted 25 | . 2 . . . . . . 2 . . 4 1 3 4 2 4 1 . . . . . 2 . . . . . Heat Transferred 7591 | 250 309 518 . . . . . . . . 550 550 1100 1410 500 2274 80 50 . . . . . . . . . . Parts Sabotaged 2 | . . . . . . . . . . . . . . . . . . . . . . . 2 . . . . . Parts Stolen . | . . . . . . . . . . . . . . . . . . . . . . . . . . . . . Parts Stripped . | . . . . . . . . . . . . . . . . . . . . . . . . . . . . . Power Chain Reactions 4 | 3 1 . . . . . . . . . . . . . . . . . . . . . . . . . . . Missiles Intercepted . | . . . . . . . . . . . . . . . . . . . . . . . . . . . . . Alert | -11 -10 -10 -10 -9 -8 -8 -8 -8 -7 -7 -7 -7 -6 -6 -6 -6 -5 -5 -4 -4 -3 -3 -3 -3 -2 -2 -1 -1 ------- Run | Scr Mat Min Exi Min Mat Gar Mat Gar Fac Gar Fac Gar Fac Gar Fac Gar Fac Gar Fac Gar Res Gar Res Gar Res Gar Acc Com Peak Influence 1631 | 40 199 86 . 165 235 921 1003 1604 1053 1523 1150 1631 1130 1122 593 667 609 871 677 545 443 728 629 572 1089 1440 1007 791 Average Influence 629 | 20 96 39 . 98 134 532 726 1109 815 1233 801 1231 810 835 384 444 485 735 400 290 321 468 424 413 485 1222 679 361 Maximum Alert Level 5 | . . . . . 1 3 3 5 3 4 4 5 4 4 2 2 2 3 2 2 2 3 2 2 3 4 3 3 Low Security (%) 10 | 100 100 100 . 100 74 13 . . . . . . . . 17 . . . 3 43 9 . . . 6 . . 37 Level 1 19 | . . . . . 25 15 . . . . 2 . . . 41 45 37 . 47 28 68 45 43 29 51 . 11 27 Level 2 27 | . . . . . . 38 37 13 17 . 33 3 16 20 41 54 62 29 49 28 22 40 56 70 17 . 32 12 Level 3 33 | . . . . . . 32 62 39 82 32 52 32 80 79 . . . 70 . . . 14 . . 24 23 56 21 Level 4 8 | . . . . . . . . 42 . 66 11 46 2 . . . . . . . . . . . . 76 . . Level 5 . | . . . . . . . . 4 . . . 17 . . . . . . . . . . . . . . . . High Security . | . . . . . . . . . . . . . . . . . . . . . . . . . . . . . Max Security . | . . . . . . . . . . . . . . . . . . . . . . . . . . . . . Squads Dispatched 101 | . 2 . . . 2 . 4 . 6 . 16 . 18 . 4 . 2 . 3 . 10 . 4 . 15 . 14 1 Investigation 29 | . 2 . . . 2 . . . 1 . 8 . 6 . . . . . 1 . 2 . . . 3 . 4 . Extermination 23 | . . . . . . . . . 1 . 2 . 4 . . . 1 . 2 . 3 . 2 . 4 . 3 1 Reinforcement 20 | . . . . . . . 2 . 1 . 3 . 2 . 3 . 1 . . . 1 . . . 5 . 2 . Assault 20 | . . . . . . . 1 . . . 2 . 6 . 1 . . . . . . . 2 . 3 . 5 . Garrison 9 | . . . . . . . 1 . 3 . 1 . . . . . . . . . 4 . . . . . . . Intercept . | . . . . . . . . . . . . . . . . . . . . . . . . . . . . . Construction Impeded 3 | . . . . . . . . . . . 1 . . . . . . . . . . . . . 1 . 1 . Haulers Reinforced 6 | . . . . . . . . . . . 1 . 2 . 1 . . . . . 1 . . . 1 . . . Alert ID Control Effect 136 | . . . . . . . . . . . . . 14 7 1 . . 3 2 3 6 9 8 4 35 4 32 8 Stealth | -11 -10 -10 -10 -9 -8 -8 -8 -8 -7 -7 -7 -7 -6 -6 -6 -6 -5 -5 -4 -4 -3 -3 -3 -3 -2 -2 -1 -1 --------- Run | Scr Mat Min Exi Min Mat Gar Mat Gar Fac Gar Fac Gar Fac Gar Fac Gar Fac Gar Fac Gar Res Gar Res Gar Res Gar Acc Com Distress Signals 46 | . 1 . . . . . 4 . . . 2 . 2 . 2 . 2 . 13 . 2 . 2 . 2 . 11 3 Communications Jammed . | . . . . . . . . . . . . . . . . . . . . . . . . . . . . . Distress Signals . | . . . . . . . . . . . . . . . . . . . . . . . . . . . . . Times Spotted 921 | . 12 4 . 19 6 35 37 30 22 28 49 34 53 18 9 29 12 35 53 46 43 33 58 20 73 26 87 50 Peak Tracking Total 15 | . 3 2 . 11 4 6 5 4 5 6 6 6 10 4 4 11 8 5 9 15 8 11 13 4 8 10 12 14 Tactical Retreats 79 | . . 1 . 4 2 7 1 . . 1 3 1 7 . 2 3 . 5 3 7 3 1 11 1 3 . 8 5 Traps | -11 -10 -10 -10 -9 -8 -8 -8 -8 -7 -7 -7 -7 -6 -6 -6 -6 -5 -5 -4 -4 -3 -3 -3 -3 -2 -2 -1 -1 ------- Run | Scr Mat Min Exi Min Mat Gar Mat Gar Fac Gar Fac Gar Fac Gar Fac Gar Fac Gar Fac Gar Res Gar Res Gar Res Gar Acc Com Traps Triggered 70 | . . . . . 1 6 . 5 1 8 . . 1 7 . 5 1 8 1 7 1 7 . 3 . 6 . 2 Indirectly . | . . . . . . . . . . . . . . . . . . . . . . . . . . . . . Trap Hack Attempts 316 | . . . . . . . . . 16 . 111 34 99 10 17 7 7 3 12 . . . . . . . . . Triggered 1 | . . . . . . . . . . . . . . . 1 . . . . . . . . . . . . . Disarmed 30 | . . . . . . . . . 2 . 12 6 5 1 . . . . 4 . . . . . . . . . Reprogrammed 62 | . . . . . . . . . 4 . 18 6 21 1 6 2 2 2 . . . . . . . . . . Reused 14 | . . . . . . . . . 1 . 4 . 7 . 1 . . 1 . . . . . . . . . . Traps Extracted . | . . . . . . . . . . . . . . . . . . . . . . . . . . . . . Installed . | . . . . . . . . . . . . . . . . . . . . . . . . . . . . . Triggered 18 | . . . . . . . . . 1 . 5 . 9 . 1 . . 1 . 1 . . . . . . . . Machines | -11 -10 -10 -10 -9 -8 -8 -8 -8 -7 -7 -7 -7 -6 -6 -6 -6 -5 -5 -4 -4 -3 -3 -3 -3 -2 -2 -1 -1 ---------- Run | Scr Mat Min Exi Min Mat Gar Mat Gar Fac Gar Fac Gar Fac Gar Fac Gar Fac Gar Fac Gar Res Gar Res Gar Res Gar Acc Com Machines Disabled 92 | . 2 . . 2 1 4 . 8 1 6 . 8 2 8 . 4 . 4 3 4 1 4 . 4 5 5 6 10 Max in Single Turn 2 | . 1 . . 2 1 1 . 2 . 1 . 2 1 1 . 1 . 1 1 1 1 1 . 1 . 1 1 2 Garrison Access 3 | . . . . . . . . . . . . . 2 . . . . . . . . . . . . . 1 . Garrison Relay 46 | . . . . . . 4 . 5 . 5 . 4 . 4 . 4 . 4 . 4 . 4 . 4 . 4 . . Phase Generator 4 | . . . . . . . . 1 . . . 1 . 1 . . . . . . . . . . . . . 1 Energy Cycler 1 | . . . . . . . . . . . . . . . . . . . . . . . . . . . 1 . Machines Sabotaged 1 | . . . . . . . . . . . . . . . . . . . . . . . . . . . 1 . Garrisons Compromised . | . . . . . . . . . . . . . . . . . . . . . . . . . . . . . Overloaded Fab Kills . | . . . . . . . . . . . . . . . . . . . . . . . . . . . . . Fab Network Shutdowns 4 | . . . . . . . . . 1 . 1 . . . 1 . . . . . . . . . 1 . . . Hacking | -11 -10 -10 -10 -9 -8 -8 -8 -8 -7 -7 -7 -7 -6 -6 -6 -6 -5 -5 -4 -4 -3 -3 -3 -3 -2 -2 -1 -1 --------- Run | Scr Mat Min Exi Min Mat Gar Mat Gar Fac Gar Fac Gar Fac Gar Fac Gar Fac Gar Fac Gar Res Gar Res Gar Res Gar Acc Com Machines Accessed 210 | . 10 1 1 . 9 . 8 . 15 . 28 . 32 . 11 . 7 . 15 . 15 . 14 . 13 . 17 14 Terminals 121 | . 8 1 . . 3 . 6 . 8 . 14 . 19 . 5 . 4 . 7 . 8 . 8 . 4 . 12 14 Fabricators 17 | . . . . . . . . . 2 . 4 . 3 . 2 . . . 2 . 1 . . . 2 . 1 . Repair Stations 10 | . . . . . 1 . . . 1 . 2 . 1 . . . . . 2 . 1 . 1 . 1 . . . Recycling Units 30 | . 2 . . . 2 . . . 1 . 4 . 4 . 3 . 2 . 1 . 2 . 3 . 4 . 2 . Scanalyzers 16 | . . . . . 2 . 1 . 2 . 3 . 3 . . . . . 2 . 1 . . . 1 . 1 . Garrison Access 15 | . . . . . 1 . 1 . 1 . 1 . 2 . 1 . 1 . 1 . 2 . 2 . 1 . 1 . Total Hacks 866 | . 37 1 1 . 39 . 31 . 47 . 108 . 118 . 48 . 31 . 74 . 77 . 58 . 39 . 80 77 Successful 690 | . 24 1 1 . 33 . 24 . 37 . 97 . 96 . 44 . 21 . 59 . 54 . 48 . 29 . 62 60 Failed 174 | . 13 . . . 6 . 7 . 10 . 10 . 21 . 4 . 10 . 15 . 23 . 10 . 10 . 18 17 Catastrophic 8 | . . . . . . . . . 1 . . . 1 . . . . . . . 3 . . . . . 3 . Database Lockouts 3 | . . . . . . . . . . . 2 . 1 . . . . . . . . . . . . . . . Manual 402 | . 24 2 2 . 15 . 25 . 15 . 41 . 46 . 18 . 15 . 40 . 36 . 32 . 15 . 40 36 Terminals 615 | . 30 1 . . 20 . 29 . 30 . 72 . 83 . 30 . 25 . 49 . 50 . 43 . 14 . 62 77 Fabricators 60 | . . . . . . . . . 6 . 12 . 12 . 7 . . . 8 . 5 . . . 5 . 5 . Repair Stations 25 | . . . . . 2 . . . 2 . 5 . 2 . . . . . 5 . 5 . 1 . 3 . . . Recycling Units 77 | . 7 . . . 5 . . . 1 . 7 . 9 . 9 . 4 . 3 . 7 . 9 . 10 . 6 . Scanalyzers 61 | . . . . . 10 . 1 . 6 . 11 . 8 . . . . . 8 . 7 . . . 6 . 4 . Garrison Access 27 | . . . . . 2 . 1 . 2 . 1 . 4 . 2 . 2 . 1 . 3 . 5 . 1 . 3 . Terminal Hacks 321 | . 12 . 1 . 10 . 13 . 14 . 43 . 49 . 17 . 10 . 28 . 22 . 23 . 4 . 34 41 Record 47 | . . . . . . . 3 . . . 3 . 8 . 5 . 6 . 3 . 6 . 1 . . . . 12 Part Schematic 27 | . . . . . . . . . 1 . 4 . 8 . . . 1 . 6 . 2 . 2 . . . 1 2 Robot Schematic 4 | . . . . . . . . . . . 1 . 1 . . . . . . . . . . . . . 1 1 Robot Analysis 27 | . 3 . . . . . . . 2 . 4 . 5 . . . . . 4 . 3 . 2 . . . 1 3 Prototype ID Bank 47 | . 4 . . . . . 7 . 3 . 5 . 6 . 2 . 1 . 1 . 4 . 3 . 1 . 3 7 Open Door 4 | . . . . . . . . . . . . . . . . . . . . . . . . . . . 4 . Level Access Points 4 | . . . . . 1 . 1 . . . . . . . . . . . . . . . 1 . . . . 1 Branch Access Points 2 | . . . . . 1 . . . . . 1 . . . . . . . . . . . . . . . . . Emergency Access Points 5 | . . . . . 1 . . . 1 . . . 1 . . . 1 . 1 . . . . . . . . . Machine Index 3 | . . . . . . . . . . . . . . . . . . . . . . . 1 . . . 1 1 Terminal Index 8 | . 1 . . . 1 . . . . . 1 . 2 . . . . . . . . . 1 . 1 . . 1 Fabricator Index 1 | . . . . . . . . . . . . . . . 1 . . . . . . . . . . . . . Garrison Index 5 | . . . . . . . . . . . 1 . 1 . . . . . 1 . . . . . . . 1 1 Alert Level 5 | . . . . . 1 . . . 1 . 2 . . . . . . . . . . . . . . . . 1 Unreport Threat 27 | . . . . . . . . . 2 . 5 . 5 . 3 . . . 2 . 1 . 2 . . . 2 5 Locate Traps 22 | . 2 . . . 1 . . . . . 1 . 1 . . . 1 . 4 . 1 . 4 . 2 . 5 . Dispatch Records 3 | . . . . . 1 . . . . . . . . . . . . . . . . . 1 . . . . 1 Maintenance Status 2 | . . . . . . . . . 1 . 1 . . . . . . . . . . . . . . . . . Security Status 3 | . . . . . . . . . . . . . . . 1 . . . 1 . 1 . . . . . . . Surveillance Status 3 | . . . . . . . . . . . 1 . 1 . . . . . . . . . . . . . . 1 Patrol Status 4 | . . . . . . . . . . . 1 . . . 1 . . . . . . . 1 . . . . 1 Extermination Status 1 | . . . . . . . . . . . . . 1 . . . . . . . . . . . . . . . Reinforcement Status 2 | . . . . . . . . . . . 1 . . . . . . . . . . . . . . . 1 . Assault Status 4 | . . . . . . . . . . . 1 . 1 . . . . . . . 2 . . . . . . . Recall Investigation 4 | . 1 . . . . . . . . . 1 . . . . . . . . . 1 . . . . . 1 . Recall Extermination 7 | . . . . . . . . . 1 . 1 . . . . . . . 1 . . . . . . . 4 . Recall Reinforcements 6 | . . . . . . . . . . . 3 . . . . . . . 1 . . . . . . . 2 . Recall Assault 11 | . . . . . . . . . . . . . 5 . 1 . . . . . . . 1 . . . 4 . Hauler Manifests 4 | . . . . . 1 . . . 1 . 1 . . . . . . . . . . . . . . . 1 . Registered Components 7 | . . . . . . . 1 . . . 1 . 1 . 1 . . . . . . . 1 . . . 1 1 Registered Prototypes 8 | . . . . . . . 1 . 1 . 1 . 1 . 1 . . . . . 1 . 2 . . . . . Zone Layout 11 | . 1 . . . 2 . . . . . 2 . 1 . 1 . . . 3 . . . . . . . 1 . EX-Prototype ID Bank 1 | . . . 1 . . . . . . . . . . . . . . . . . . . . . . . . . Disengage Seal 2 | . . . . . . . . . . . . . . . . . . . . . . . . . . . . 2 Fabricator Hacks 50 | . . . . . . . . . 5 . 12 . 10 . 7 . . . 6 . 2 . . . 5 . 3 . Network Status 7 | . . . . . . . . . . . 3 . 1 . 2 . . . . . . . . . 1 . . . Load Schematic 17 | . . . . . . . . . 1 . 4 . 4 . 2 . . . 3 . 1 . . . 1 . 1 . Build 26 | . . . . . . . . . 4 . 5 . 5 . 3 . . . 3 . 1 . . . 3 . 2 . Repair Station Hacks 19 | . . . . . 2 . . . 2 . 4 . 2 . . . . . 2 . 4 . 1 . 2 . . . Scan Component 9 | . . . . . 1 . . . 1 . 2 . 1 . . . . . 1 . 2 . . . 1 . . . Repair 9 | . . . . . 1 . . . 1 . 2 . 1 . . . . . 1 . 2 . . . 1 . . . Refit 1 | . . . . . . . . . . . . . . . . . . . . . . . 1 . . . . . Recycling Unit Hacks 42 | . 2 . . . 3 . . . 1 . 4 . 7 . 5 . 4 . 2 . 3 . 5 . 4 . 2 . Process 1 | . . . . . . . . . . . . . . . . . . . . . . . 1 . . . . . Report Inventory 29 | . 1 . . . 2 . . . 1 . 4 . 4 . 3 . 2 . 1 . 2 . 3 . 4 . 2 . Retrieve Matter 1 | . . . . . . . . . . . . . . . . . . . . . . . 1 . . . . . Retrieve Components 11 | . 1 . . . 1 . . . . . . . 3 . 2 . 2 . 1 . 1 . . . . . . . Scanalyzer 51 | . . . . . 10 . 1 . 6 . 8 . 7 . . . . . 7 . 6 . . . 3 . 3 . Insert Component 24 | . . . . . 4 . 1 . 3 . 4 . 3 . . . . . 3 . 3 . . . 1 . 2 . Analyze 27 | . . . . . 6 . . . 3 . 4 . 4 . . . . . 4 . 3 . . . 2 . 1 . Garrison Access Hacks 20 | . . . . . 1 . 1 . 2 . 1 . 4 . 2 . 2 . 1 . 1 . 3 . 1 . 1 . Unlock Access 12 | . . . . . 1 . 1 . 1 . 1 . 1 . 1 . 1 . 1 . 1 . 1 . 1 . 1 . Seal Access 1 | . . . . . . . . . . . . . 1 . . . . . . . . . . . . . . . Coupler Status 7 | . . . . . . . . . 1 . . . 2 . 1 . 1 . . . . . 2 . . . . . Unauthorized Hacks 427 | . 28 2 . . 16 . 22 . 16 . 51 . 37 . 29 . 13 . 27 . 38 . 37 . 25 . 42 44 Terminals 147 | . 8 1 . . 5 . 9 . 7 . 19 . 13 . 10 . 5 . 10 . 11 . 10 . 5 . 15 19 Track 1 | . . . . . . . . . . . . . . . . . . . . . . . 1 . . . . . Assimilate 33 | . 1 . . . 1 . 5 . 2 . 6 . 1 . 4 . 2 . 4 . 2 . 1 . . . 1 3 Botnet 96 | . 6 1 . . 3 . 4 . 5 . 12 . 11 . 5 . 2 . 5 . 8 . 6 . 4 . 11 13 Detonate 3 | . . . . . . . . . . . . . . . . . . . . . . . . . . . 2 1 Disrupt 1 | . . . . . . . . . . . . . . . . . . . . . . . . . . . . 1 Operators 12 | . 1 . . . 1 . . . . . 1 . 1 . 1 . 1 . 1 . 1 . 2 . 1 . . 1 Sabotage 1 | . . . . . . . . . . . . . . . . . . . . . . . . . . . 1 . Fabricators 3 | . . . . . . . . . . . . . 1 . . . . . 1 . 1 . . . . . . . Siphon 3 | . . . . . . . . . . . . . 1 . . . . . 1 . 1 . . . . . . . Repair Stations . | . . . . . . . . . . . . . . . . . . . . . . . . . . . . . Recycling Units 26 | . 2 . . . 2 . . . . . 3 . 2 . 3 . . . 1 . 2 . 4 . 5 . 2 . Monitor 2 | . . . . . . . . . . . . . . . . . . . . . . . 1 . . . 1 . Reject 15 | . 1 . . . 2 . . . . . 1 . 1 . 2 . . . 1 . 1 . 2 . 3 . 1 . Mask 5 | . . . . . . . . . . . . . 1 . 1 . . . . . 1 . 1 . 1 . . . Tunnel 4 | . 1 . . . . . . . . . 2 . . . . . . . . . . . . . 1 . . . Scanalyzers 7 | . . . . . . . . . . . 3 . 1 . . . . . 1 . 1 . . . . . 1 . Extract 7 | . . . . . . . . . . . 3 . 1 . . . . . 1 . 1 . . . . . 1 . Garrison Access 4 | . . . . . . . . . . . . . . . . . . . . . 1 . 2 . . . 1 . Broadcast 1 | . . . . . . . . . . . . . . . . . . . . . . . 1 . . . . . Reprogram 3 | . . . . . . . . . . . . . . . . . . . . . 1 . 1 . . . 1 . Data Cores Recovered 1 | . . . . . . . . . . . . . . . . . . . 1 . . . . . . . . . Used 1 | . . . . . . . . . . . . . . . . . . . 1 . . . . . . . . . Hacking Detections 166 | . 10 1 . . 6 . 7 . 11 . 21 . 26 . 7 . 4 . 10 . 14 . 9 . 12 . 15 13 Full Trace Events 10 | . . . . . 1 . . . 1 . 1 . 3 . . . . . . . . . . . 2 . 2 . Feedback Events 3 | . . . . . . . . . 1 . . . . . . . . . . . . . . . 1 . 1 . Corruption 2 | . . . . . . . . . 1 . . . . . . . . . . . . . . . . . 1 . Hackware Fried 1 | . . . . . . . . . . . . . . . . . . . . . . . . . 1 . . . Feedback Blocked . | . . . . . . . . . . . . . . . . . . . . . . . . . . . . . Robot Schematics Acquired 4 | . . . . . . . . . . . 1 . 1 . . . . . . . . . . . . . 1 1 Robots Built 14 | . . . . . . . . . 4 . 1 . . . . . . . 3 . . . . . . . 6 . Matter 1578 | . . . . . . . . . 504 . 219 . . . . . . . 285 . . . . . . . 570 . Time 456 | . . . . . . . . . 268 . 38 . . . . . . . 50 . . . . . . . 100 . Total Robot Build Rating 64 | . . . . . . . . . 16 . 3 . . . . . . . 15 . . . . . . . 30 . Part Schematics Acquired 81 | . . . . . 3 . . . 3 . 19 . 13 . . . 1 . 10 . 12 . 2 . 1 . 15 2 Parts Built 16 | . . . . . . . . . 1 . 3 . 4 . 1 . . . 3 . 1 . . . 3 . . . Matter 4121 | . . . . . . . . . 219 . 632 . 910 . 570 . . . 301 . 238 . . . 1251 . . . Time 1407 | . . . . . . . . . 58 . 324 . 290 . 228 . . . 201 . 84 . . . 222 . . . Total Part Build Rating 97 | . . . . . . . . . 3 . 14 . 23 . 5 . . . 19 . 6 . . . 27 . . . Parts Repaired 9 | . . . . . 1 . . . 1 . 2 . 1 . . . . . 1 . 2 . . . 1 . . . Time 287 | . . . . . 38 . . . 22 . 66 . 29 . . . . . 31 . 65 . . . 36 . . . Parts Recycled . | . . . . . . . . . . . . . . . . . . . . . . . . . . . . . Recycled Matter 14 | . . . . . . . . . . . . . . . . . . . . . . . 14 . . . . . Retrieved Matter 14 | . . . . . . . . . . . . . . . . . . . . . . . 14 . . . . . Retrieved Components 30 | . 7 . . . 3 . . . . . . . 6 . 4 . 5 . 3 . 2 . . . . . . . Parts Scanalyzed 21 | . . . . . 4 . . . 2 . 4 . 3 . . . . . 3 . 3 . . . 1 . 1 . Part Schematics Acquired 20 | . . . . . 3 . . . 2 . 4 . 3 . . . . . 3 . 3 . . . 1 . 1 . Parts Damaged 4 | . . . . . 1 . . . . . . . . . . . . . 2 . . . . . 1 . . . Bothacking | -11 -10 -10 -10 -9 -8 -8 -8 -8 -7 -7 -7 -7 -6 -6 -6 -6 -5 -5 -4 -4 -3 -3 -3 -3 -2 -2 -1 -1 ------------ Run | Scr Mat Min Exi Min Mat Gar Mat Gar Fac Gar Fac Gar Fac Gar Fac Gar Fac Gar Fac Gar Res Gar Res Gar Res Gar Acc Com Used RIF Installer 11 | . . . . . . 1 . 1 . 1 . 1 . 1 . 1 . 1 . 1 . 1 . 1 . 1 . . Coupler Efficiency 3 | . . . . . . . . . . . . . . . . . . 1 . . . 1 . . . 1 . . Robot Detection 1 | . . . . . . . . 1 . . . . . . . . . . . . . . . . . . . . Patrol Navigation 1 | . . . . . . . . . . 1 . . . . . . . . . . . . . . . . . . Alert ID Control 1 | . . . . . . . . . . . . 1 . . . . . . . . . . . . . . . . Structural Interface 1 | . . . . . . . . . . . . . . . . 1 . . . . . . . . . . . . Autooverride 1 | . . . . . . . . . . . . . . 1 . . . . . . . . . . . . . . Autoassimilate 1 | . . . . . . . . . . . . . . . . . . . . 1 . . . . . . . . Crosswire 1 | . . . . . . . . . . . . . . . . . . . . . . . . 1 . . . . Robots Hacked 387 | . . . . . . . 4 8 17 11 37 9 32 12 9 10 5 10 20 22 28 13 11 18 48 15 39 9 Non-combat 124 | . . . . . . . 4 . 12 . 25 . 19 . 7 . 3 . 12 . 8 . 4 . 17 . 13 . Combat 263 | . . . . . . . . 8 5 11 12 9 13 12 2 10 2 10 8 22 20 13 7 18 31 15 26 9 Autooverrided 23 | . . . . . . . . . . . . . . 3 . 3 . 3 1 . . 3 2 . 1 2 3 2 Autoassimilated 33 | . . . . . . . . . . . . . . . . . . . . 1 6 8 3 2 4 1 5 3 Robot Hacks Applied 427 | . . . . . . . 6 10 33 12 49 9 44 10 19 7 5 7 25 23 28 4 7 16 54 12 43 4 parse_system 20 | . . . . . . . 2 1 6 1 1 . 3 1 . . . . . 1 1 . 1 . 1 . 1 . no_distress 67 | . . . . . . . 1 . 9 . 11 . 13 . 6 . . . 2 . 8 . 1 . 10 . 6 . generate_echo 1 | . . . . . . . . . . . . . . . . . . . 1 . . . . . . . . . find_chute 4 | . . . . . . . . . 1 . . . 2 . . . . . 1 . . . . . . . . . deconstruct_machine 2 | . . . . . . . . . . . 1 . . . . . . . . . . . . . 1 . . . hold_bot 2 | . . . . . . . . . . . . . . . . . . . . . . . . . 1 . 1 . ignore_repairs 9 | . . . . . . . . . . . 1 . 4 . . . . . 1 . 2 . . . 1 . . . map_walls 9 | . . . . . . . . . 2 . 4 . . . . . . . 1 . . . . . . . 2 . randomize_corridors 1 | . . . . . . . . . 1 . . . . . . . . . . . . . . . . . . . map_earth 1 | . . . . . . . . . . . . . . . . . . . . . . . . . 1 . . . find_fabricator 13 | . . . . . . . . . . . 1 . 5 . 1 . . . 1 . 3 . 1 . 1 . . . drop_inventory 19 | . . . . . . . 1 . 3 . 5 . . . 2 . 3 . 3 . . . 1 . 1 . . . locate_stockpiles 3 | . . . . . . . . . 1 . . . . . . . . . . . . . . . 1 . 1 . find_recycling 9 | . . . . . . . . . 1 . 2 . 2 . 1 . . . 1 . 1 . . . 1 . . . ignore_parts 4 | . . . . . . . . . 1 . 1 . . . 1 . . . 1 . . . . . . . . . find_station 4 | . . . . . . . . . . . 1 . 2 . . . . . . . . . . . 1 . . . release_backups 3 | . . . . . . . . . . . 1 . . . 1 . . . . . . . . . 1 . . . deconstruct_bot 9 | . . . . . . . . . . . 1 . . . 2 . . . . . . . . . 1 . 5 . check_alert 1 | . . . . . . . . . . . . . . . 1 . . . . . . . . . . . . . purge_threat 8 | . . . . . . . . . 1 . . . . . 1 . . . 1 . . . . . 1 . 4 . find_terminals 2 | . . . . . . . 1 . . . . . . . 1 . . . . . . . . . . . . . locate_traps 2 | . . . . . . . . . 1 . . . . . . . . . . . . . . . 1 . . . reprogram_traps 1 | . . . . . . . . . . . 1 . . . . . . . . . . . . . . . . . block_reporting 1 | . . . . . . . . . . . . . . . . . . . 1 . . . . . . . . . summon_haulers 1 | . . . . . . . . . . . . . . . . . . . . . . . . . . . 1 . map_route 1 | . . . . . . . . . . . . . . . . . . . . . . . . . 1 . . . mark_security 1 | . . . . . . . . . 1 . . . . . . . . . . . . . . . . . . . relay_feed 4 | . . . . . . . . . . . 1 . . . . . . . 2 . . . 1 . . . . . find_garrison 3 | . . . . . . . . . . . . . . . . . 1 . . . . . . . 1 . 1 . scatter_targeting 5 | . . . . . . . . 1 1 . . . . 1 . . . . 1 . . . . 1 . . . . disrupt_area 7 | . . . . . . . . . 1 1 . . . . . . 1 1 . 1 1 1 . . . . . . spike_heat 10 | . . . . . . . . 4 . 2 1 . . . 1 . . . . . . . . . 1 . 1 . overload_power 8 | . . . . . . . . 1 1 . 1 . . . . 2 . . 1 . . 1 . . 1 . . . amplify_resonance 10 | . . . . . . . 1 . . 1 5 . . . . . . . 1 . 1 . . . . . 1 . wipe_record 4 | . . . . . . . . . . . 3 . . . . 1 . . . . . . . . . . . . disable_weapons 8 | . . . . . . . . . . 1 . . . 1 . . . . . . 1 . . . 4 . 1 . reboot_system 21 | . . . . . . . . 1 . 2 2 3 6 1 . . . . 1 . 4 . . 1 . . . . go_dormant 4 | . . . . . . . . . . 1 2 . 1 . . . . . . . . . . . . . . . overwrite_iff 39 | . . . . . . . . . . . . . 2 1 . . . 1 1 17 . 2 1 1 2 1 8 2 streamctrl_high 1 | . . . . . . . . 1 . . . . . . . . . . . . . . . . . . . . formatsys_low 3 | . . . . . . . . . 1 . . . . . . . . . . . . . . . 2 . . . formatsys_high 102 | . . . . . . . . 1 1 3 3 6 4 5 1 4 . 5 4 4 6 . 1 13 18 11 10 2 Relay Couplers Released 79 | . . . . . . 8 . 7 . 7 2 6 . 8 . 7 . 6 . 6 . 7 . 8 . 6 1 . Machine Destruction 77 | . . . . . . 8 . 7 . 7 . 6 . 8 . 7 . 6 . 6 . 7 . 8 . 6 1 . Programmers 2 | . . . . . . . . . . . 2 . . . . . . . . . . . . . . . . . Attached 46 | . . . . . . 1 1 3 1 3 2 2 1 4 . 3 . 3 1 5 . 3 1 5 2 4 1 . Crosswired 9 | . . . . . . . . . . . . . . . . . . . . . . . . 7 . 2 . . Robots Rewired 16 | . . . . . . . . 3 . 6 . . . . . . . . 2 1 . . . . . 4 . . Allies Hacked 11 | . . . . . . . . . . . 2 . . . . . . . 2 . 2 . . 2 . . 2 1 Hacks Repelled . | . . . . . . . . . . . . . . . . . . . . . . . . . . . . . Allies | -11 -10 -10 -10 -9 -8 -8 -8 -8 -7 -7 -7 -7 -6 -6 -6 -6 -5 -5 -4 -4 -3 -3 -3 -3 -2 -2 -1 -1 -------- Run | Scr Mat Min Exi Min Mat Gar Mat Gar Fac Gar Fac Gar Fac Gar Fac Gar Fac Gar Fac Gar Res Gar Res Gar Res Gar Acc Com Total Allies 254 | . 1 . . . 1 . 5 5 8 9 10 6 7 9 3 7 2 9 12 21 17 13 7 16 27 15 33 11 Largest Group 18 | . 1 1 . . 1 . 3 3 5 8 7 6 6 4 3 4 2 3 3 4 5 3 3 11 18 9 16 8 Highest-Rated Group 1179 | . 10 10 . . 10 . 30 114 178 218 199 179 186 125 65 94 52 102 87 194 270 220 175 551 1179 571 978 363 Highest-Rated Ally 147 | . 10 10 . . 10 . 10 38 38 38 32 32 41 32 29 29 26 47 49 115 90 115 64 64 147 147 147 69 Total Orders 35 | . . . . . . . . 3 1 . 1 . 4 . 2 2 . . . . 2 . . . 9 1 6 4 GOTO 5 | . . . . . . . . 1 . . . . . . . . . . . . . . . . . . 2 2 ROAM 2 | . . . . . . . . . . . 1 . . . . 1 . . . . . . . . . . . . FOLLOW 5 | . . . . . . . . 1 1 . . . . . . . . . . . . . . . 1 1 1 . GUARD 5 | . . . . . . . . 1 . . . . . . . 1 . . . . . . . . 3 . . . AID 1 | . . . . . . . . . . . . . . . . . . . . . . . . . 1 . . . EXPLORE 17 | . . . . . . . . . . . . . 4 . 2 . . . . . 2 . . . 4 . 3 2 Ally Attacks 1126 | . . . . . . . . 25 23 37 31 8 62 55 7 29 . 31 18 58 65 44 38 24 238 44 198 91 Total Damage 35158 | . . . . . . . . 469 694 716 681 357 1662 1792 113 479 . 448 569 1703 2156 1348 1116 781 8940 1647 7137 2350 Kills 201 | . . . . . . . . 5 11 6 5 1 16 7 1 . . 3 2 4 11 9 8 4 51 10 35 12 Allies Corrupted 15 | . . . . . . . . . . . . 2 . . . . 1 . 2 . 2 . 2 . 1 1 4 . Allies Melted 2 | . . . . . . . . . . . . . . . . . . . . . . . . . 1 . . 1 Intel | -11 -10 -10 -10 -9 -8 -8 -8 -8 -7 -7 -7 -7 -6 -6 -6 -6 -5 -5 -4 -4 -3 -3 -3 -3 -2 -2 -1 -1 ------- Run | Scr Mat Min Exi Min Mat Gar Mat Gar Fac Gar Fac Gar Fac Gar Fac Gar Fac Gar Fac Gar Res Gar Res Gar Res Gar Acc Com Robot Analysis Total 27 | . 3 . . . . . . . 2 . 4 . 5 . . . . . 4 . 3 . 2 . . . 1 3 Derelict Logs Recovered 3 | . . 2 . 1 . . . . . . . . . . . . . . . . . . . . . . . . Drone Launches 27 | . . . . . . . . . . . . . 4 . 2 . . . . . 2 . . . 4 . 3 12 Drone Recoveries . | . . . . . . . . . . . . . . . . . . . . . . . . . . . . . Exploration | -11 -10 -10 -10 -9 -8 -8 -8 -8 -7 -7 -7 -7 -6 -6 -6 -6 -5 -5 -4 -4 -3 -3 -3 -3 -2 -2 -1 -1 ------------- Run | Scr Mat Min Exi Min Mat Gar Mat Gar Fac Gar Fac Gar Fac Gar Fac Gar Fac Gar Fac Gar Res Gar Res Gar Res Gar Acc Com Turns Passed 28462 | 210 824 236 390 257 499 766 864 1130 1330 1023 1949 944 2682 965 667 691 375 978 1246 799 1244 820 858 2016 1879 692 1431 697 Spaces Moved 44449 | 173 942 477 722 481 727 1067 1173 1517 2162 1298 3564 1718 4609 1442 985 960 802 1456 1912 1312 1985 1174 1472 1204 3531 1504 2583 1497 Core 244 | 148 86 . . . . . . . 3 1 . 5 . . . . . . . . . . . . . 1 . . Treads 50 | 25 25 . . . . . . . . . . . . . . . . . . . . . . . . . . . Legs . | . . . . . . . . . . . . . . . . . . . . . . . . . . . . . Wheels . | . . . . . . . . . . . . . . . . . . . . . . . . . . . . . Hover 126 | . 126 . . . . . . . . . . . . . . . . . . . . . . . . . . . Flight 44029 | . 705 477 722 481 727 1067 1173 1517 2159 1297 3564 1713 4609 1442 985 960 802 1456 1912 1312 1985 1174 1472 1204 3531 1503 2583 1497 Fastest Speed 21 | 50 40 37 37 37 32 30 29 29 27 26 26 26 26 26 26 27 27 27 25 26 26 26 26 26 22 21 21 21 Average Speed 27 | 75 49 37 37 37 32 31 29 29 31 28 26 26 26 26 26 27 27 27 26 26 26 26 26 28 25 21 21 21 Slowest Speed 160 | 160 160 40 37 37 37 32 30 29 50 100 29 100 29 94 27 27 27 27 27 26 101 26 102 38 103 150 21 21 Overloaded Moves . | . . . . . . . . . . . . . . . . . . . . . . . . . . . . . Propulsion Burnouts . | . . . . . . . . . . . . . . . . . . . . . . . . . . . . . Robots Hopped 218 | . 4 . . 1 3 . 2 5 11 2 15 7 17 . 5 . 3 5 21 3 15 2 24 1 36 15 9 12 Cave-ins Triggered 4 | . . . . . . . . . . . . . . . . . 1 . . . . . 2 . . . 1 . Exploration Rate (%) 71 | 5 93 98 73 75 32 83 75 94 41 96 78 98 90 92 31 99 20 99 42 99 50 98 34 98 68 99 55 44 Regions Visited 28 Branch Regions 4 Pre-discovered Areas 5 | . 1 . . 1 . . . . . . 2 . . . . . . . . . . . . . 1 . . . Known Exits Taken 12 | . . . . . 1 . 1 . 1 . 1 . 1 . 1 . 1 . 1 . 1 . 1 . 1 . 1 . Unknown Exits Taken 5 | 1 1 1 1 1 . . . . . . . . . . . . . . . . . . . . . . . . Scrap Searched 3 | . . 1 . 2 . . . . . . . . . . . . . . . . . . . . . . . . Spaces Dug 791 | . . . . 2 24 25 29 26 14 43 62 11 167 68 31 2 27 3 51 4 29 5 76 . 27 . 43 22 Terrain Destroyed 1287 | 8 3 . . 16 29 28 30 101 14 43 62 86 176 147 31 3 28 3 53 4 29 5 76 . 27 . 186 99 Melee 772 | . . . . 2 24 25 29 26 14 43 62 11 157 68 27 2 22 3 51 4 29 5 76 . 27 . 43 22 Projectile 42 | . . . . . 5 3 1 . . . . . 19 . 4 1 6 . 2 . . . . . . . 1 . AOE 473 | 8 3 . . 14 . . . 75 . . . 75 . 79 . . . . . . . . . . . . 142 77 Actions | -11 -10 -10 -10 -9 -8 -8 -8 -8 -7 -7 -7 -7 -6 -6 -6 -6 -5 -5 -4 -4 -3 -3 -3 -3 -2 -2 -1 -1 --------- Run | Scr Mat Min Exi Min Mat Gar Mat Gar Fac Gar Fac Gar Fac Gar Fac Gar Fac Gar Fac Gar Res Gar Res Gar Res Gar Acc Com Total 57681 | 223 1231 514 844 534 944 1382 1556 2061 2730 1808 4413 2080 5765 1866 1337 1299 915 1972 2524 1706 2576 1609 1736 2844 4349 1791 3311 1761 Wait 7555 | 3 179 2 116 9 153 62 184 287 397 171 492 93 651 104 267 117 29 324 380 200 342 237 59 1482 512 147 470 86 Move 43997 | 172 933 476 721 478 720 1065 1168 1505 2140 1292 3534 1702 4576 1440 974 958 795 1444 1872 1304 1958 1169 1425 1200 3463 1477 2564 1472 Hop 189 | . 4 . . 1 3 . 2 5 10 2 14 7 15 . 5 . 3 5 18 3 11 1 20 1 31 7 9 12 Pick Up 92 | 2 2 3 2 1 5 7 . 5 1 4 5 5 7 3 2 1 . 3 8 4 3 2 3 4 5 4 . 1 Fast Attach 218 | 12 13 1 1 4 6 1 10 1 13 1 9 2 14 4 1 5 3 14 16 3 28 . 17 3 26 . 7 3 Attach 28 | . 2 1 . 1 1 1 . . 3 1 2 . 4 . . . . 2 1 3 . 1 2 . 1 . 1 1 Detach 33 | . 3 . . 1 3 . . . 2 . 2 . 3 1 . 1 . 1 4 2 1 . 3 . 3 . 2 1 Swap 130 | . 6 . 1 1 1 4 4 4 7 1 14 3 7 2 2 2 1 3 8 4 9 4 6 4 10 10 9 3 Drop 271 | 7 16 2 3 2 10 8 11 4 15 3 18 7 20 4 4 3 4 9 23 5 31 2 16 5 29 2 6 2 Fire 932 | 26 67 22 . . 9 29 5 43 27 53 76 18 24 19 7 28 6 7 46 53 35 5 7 39 93 40 103 45 Melee 1951 | . . . . 22 33 92 121 97 57 101 104 111 293 140 56 44 41 62 88 29 75 43 129 6 63 21 73 50 Ram . | . . . . . . . . . . . . . . . . . . . . . . . . . . . . . Kick . | . . . . . . . . . . . . . . . . . . . . . . . . . . . . . Crush 1 | 1 . . . . . . . . . . . . . . . . . . . . . . . . . . . . Escape Stasis 760 | . . . . . . 85 . 50 13 106 . . . 97 . 89 13 60 . 54 . 76 2 59 . 28 . 28 Rewire 177 | . . . . . . . . 3 2 36 4 6 1 4 1 3 . 4 11 7 12 3 2 15 21 27 11 4 Trap 316 | . . . . . . . . . 16 . 111 34 99 10 17 7 7 3 12 . . . . . . . . . Miscellaneous 1031 | . 6 7 . 14 . 28 51 57 27 37 28 92 51 38 1 41 13 31 37 35 71 66 45 26 92 28 56 53 Route ------- -11/Scrapyard -10/Materials (discovered 5 exits: *Mat x3 / *Min x2) -10/Mines (discovered 3 exits: *Mat x2 / *Exi) -10/Exiles (discovered 2 exits: [*Min x2]) -9/Mines -8/Materials (discovered 6 exits: Fac x3 / Sto x2 / Gar) -8/Garrison (discovered 3 exits: *Mat x3) -8/Materials (discovered 6 exits: *Fac x3 / *Sto x2 / Gar) -8/Garrison (discovered 3 exits: *Fac x3) -7/Factory (discovered 4 exits: *Fac x2 / *Low / Gar) -7/Garrison (discovered 3 exits: *Fac x3) -7/Factory (discovered 6 exits: *Fac x3 / Low x2 / Gar) -7/Garrison (discovered 3 exits: *Fac x3) -6/Factory (discovered 9 exits: *Fac x4 / *Low x2 / *Ext x2 / Gar) -6/Garrison (discovered 3 exits: *Fac x3) -6/Factory (discovered 3 exits: *Fac / *Low / Gar) -6/Garrison (discovered 3 exits: *Fac x3) -5/Factory -5/Garrison (discovered 3 exits: *Fac x3) -4/Factory (discovered 5 exits: *Res x2 / *Upp x2 / Gar) -4/Garrison (discovered 3 exits: *Res x3) -3/Research (discovered 3 exits: *Res / *Qua / Gar) -3/Garrison (discovered 3 exits: *Res x3) -3/Research (discovered 6 exits: *Res x3 / *Qua x2 / Gar) -3/Garrison (discovered 3 exits: *Res x3) -2/Research (discovered 4 exits: *Acc / *Tes x2 / Gar) -2/Garrison (discovered 3 exits: *Acc x3) -1/Access (discovered 2 exits: *Sur / *Com) -1/Command (discovered 2 exits: *Sur x2) To Epsilon Eridani History --------- Turn | Location | Event 1 | -11/Scrapyard | Upgraded with Utility slot (x3) 11 | -11/Scrapyard | Discovered new exit (range 15) 211 | -11/Scrapyard | Entered Materials 335 | -10/Materials | Discovered new exit (range 13) 461 | -10/Materials | Discovered new exit (range 12) 461 | -10/Materials | Discovered new exit (range 16) 557 | -10/Materials | Discovered new exit (range 16) 563 | -10/Materials | Identified exit to Materials 590 | -10/Materials | Build established: Mutant 778 | -10/Materials | Discovered exit to Materials (range 16) 1035 | -10/Materials | Entered Mines 1035 | -10/Mines | Accompanied by 1 ally 1037 | -10/Mines | Reached level 2 1037 | -10/Mines | Upgraded with Propulsion slot (x1) 1095 | -10/Mines | Learned 2 Materials zone layouts 1100 | -10/Mines | Deemed a non-threat by the Exiles lab entrance 1100 | -10/Mines | Discovered new exit (range 5) 1137 | -10/Mines | Discovered exit to Materials (range 9) 1182 | -10/Mines | Discovered exit to Materials (range 6) 1183 | -10/Mines | Learned 2 Materials zone layouts 1271 | -10/Mines | Entered Exiles 1280 | -10/Exiles | Met 8R-AWN 1287 | -10/Exiles | Met EX-HEX 1323 | -10/Exiles | Met EX-DEC 1338 | -10/Exiles | Met EX-BIN 1376 | -10/Exiles | Aligned with FarCom system 1376 | -10/Exiles | Given EX-Vault access code 1385 | -10/Exiles | Opened EX-Vault 1389 | -10/Exiles | Found Superbattery 1520 | -10/Exiles | Warned to stay clear of 0b10 Research branches 1551 | -10/Exiles | Discovered new exit (range 14) 1590 | -10/Exiles | Found Longsword +1 1656 | -10/Exiles | Discovered new exit (range 14) 1661 | -10/Exiles | Stole two prototypes: Superbattery, Longsword +1 1661 | -10/Exiles | Entered Mines 1663 | -9/Mines | Reached level 3 1664 | -9/Mines | Upgraded with Utility slot (x1) 1664 | -9/Mines | Upgraded with Weapon slot (x1) 1691 | -9/Mines | Assembled infested the area 1696 | -9/Mines | Assisted by a Guerilla fighting off Assembled 1735 | -9/Mines | Learned location of Zion (-7) 1910 | -9/Mines | Discovered new exit (range 14) 1918 | -9/Mines | Entered Materials 1919 | -8/Materials | Identified exit to Factory 1920 | -8/Materials | Reached level 4 2002 | -8/Materials | Identified exit to Storage 2069 | -8/Materials | Core integrity fell below 50% 2086 | -8/Materials | Build established: Scavenger-Scout 2147 | -8/Materials | Repaired Lgt. Nuclear Core 2416 | -8/Materials | Identified exit to Garrison 2417 | -8/Materials | Entered Garrison 2419 | -8/Garrison | Reached level 5 2528 | -8/Garrison | Build established: Hacker-Sprinter 2560 | -8/Garrison | Triggered checkpoint 2586 | -8/Garrison | Garrison Relay disabled 2635 | -8/Garrison | Core integrity fell below 20% 2674 | -8/Garrison | Discovered new exit (range 15) 2685 | -8/Garrison | Installed Relay Interface Framework 2685 | -8/Garrison | Reached level 6 2686 | -8/Garrison | Upgraded with Utility slot (x1) 2698 | -8/Garrison | Triggered checkpoint 2744 | -8/Garrison | Garrison Relay disabled 2804 | -8/Garrison | Triggered checkpoint 2866 | -8/Garrison | Discovered new exit (range 10) 2869 | -8/Garrison | Identified exit to Materials 2920 | -8/Garrison | Triggered checkpoint 2954 | -8/Garrison | Garrison Relay disabled 2954 | -8/Garrison | Reached level 7 2960 | -8/Garrison | Upgraded with Propulsion slot (x1) 3000 | -8/Garrison | Discovered exit to Materials (range 8) 3036 | -8/Garrison | Triggered checkpoint 3100 | -8/Garrison | Garrison Relay disabled 3170 | -8/Garrison | Triggered checkpoint 3172 | -8/Garrison | Triggered checkpoint 3183 | -8/Garrison | Entered Materials 3238 | -8/Materials | Discovered exit to Factory (range 16) 3259 | -8/Materials | Build established: Scavenger-Sprinter 3276 | -8/Materials | Discovered exit to Storage (range 5) 3361 | -8/Materials | Reached level 8 3363 | -8/Materials | Upgraded with Weapon slot (x1) 3711 | -8/Materials | Build established: Hacker-Sprinter 3758 | -8/Materials | Discovered exit to Storage (range 15) 3950 | -8/Materials | Reached level 9 3953 | -8/Materials | Garrison activated, responded to threat 3983 | -8/Materials | First assault squad dispatched 4046 | -8/Materials | Identified exit to Garrison 4047 | -8/Materials | Entered Garrison 4197 | -8/Garrison | Phase Generator disabled 4204 | -8/Garrison | Triggered checkpoint 4264 | -8/Garrison | Reached level 10 4266 | -8/Garrison | Upgraded with Utility slot (x1) 4292 | -8/Garrison | Triggered checkpoint 4308 | -8/Garrison | Garrison Relay disabled 4326 | -8/Garrison | Discovered exit to Factory (range 15) 4345 | -8/Garrison | Expanded RIF knowledge: Robot Detection 4382 | -8/Garrison | Triggered checkpoint 4564 | -8/Garrison | Triggered checkpoint 4575 | -8/Garrison | Garrison Relay disabled 4585 | -8/Garrison | Reached level 11 4644 | -8/Garrison | Triggered checkpoint 4742 | -8/Garrison | Discovered exit to Factory (range 14) 4772 | -8/Garrison | Triggered checkpoint 4777 | -8/Garrison | Triggered checkpoint 4779 | -8/Garrison | Garrison Relay disabled 5008 | -8/Garrison | Triggered checkpoint 5058 | -8/Garrison | Reached level 12 5129 | -8/Garrison | Garrison Relay disabled 5173 | -8/Garrison | Discovered exit to Factory (range 10) 5177 | -8/Garrison | Entered Factory 5179 | -7/Factory | FarCom data flow suspended 5179 | -7/Factory | Reached level 13 5188 | -7/Factory | Upgraded with Propulsion slot (x1) 5236 | -7/Factory | Discovered new exit (range 14) 5584 | -7/Factory | Fabricated Imp. VTOL Module (x1) 5626 | -7/Factory | Repaired Imp. Medium Armor Plating 5712 | -7/Factory | Discovered new exit (range 3) 5712 | -7/Factory | Identified exit to Factory 5730 | -7/Factory | Reached level 14 5732 | -7/Factory | Upgraded with Utility slot (x1) 5858 | -7/Factory | Fabricated X-62 Marksman (x2) 5994 | -7/Factory | Fabricated X-62 Marksman (x2) 6085 | -7/Factory | Garrison activated, responded to threat 6327 | -7/Factory | Discovered exit to Factory (range 14) 6375 | -7/Factory | Local fabrication network quarantined 6469 | -7/Factory | Identified exit to Garrison 6507 | -7/Factory | Entered Garrison 6507 | -7/Garrison | Accompanied by 4 allies 6509 | -7/Garrison | Reached level 15 6517 | -7/Garrison | Garrison Relay disabled 6524 | -7/Garrison | Triggered checkpoint 6560 | -7/Garrison | Triggered checkpoint 6560 | -7/Garrison | Triggered checkpoint 6612 | -7/Garrison | Garrison Relay disabled 6673 | -7/Garrison | Triggered checkpoint 6755 | -7/Garrison | Discovered new exit (range 12) 6758 | -7/Garrison | Identified exit to Factory 6760 | -7/Garrison | Expanded RIF knowledge: Patrol Navigation 6798 | -7/Garrison | Triggered checkpoint 6847 | -7/Garrison | Garrison Relay disabled 6847 | -7/Garrison | Reached level 16 6849 | -7/Garrison | Upgraded with Utility slot (x1) 6874 | -7/Garrison | Triggered checkpoint 6964 | -7/Garrison | Discovered exit to Factory (range 10) 6978 | -7/Garrison | Garrison Relay disabled 6990 | -7/Garrison | Triggered checkpoint 7012 | -7/Garrison | Triggered checkpoint 7085 | -7/Garrison | Destroyed 8 combat bots 7091 | -7/Garrison | Garrison Relay disabled 7100 | -7/Garrison | Discovered exit to Factory (range 14) 7126 | -7/Garrison | Triggered checkpoint 7169 | -7/Garrison | Build established: Bothacker-Sprinter 7511 | -7/Garrison | Build established: Hacker-Sprinter 7530 | -7/Garrison | Entered Factory 7530 | -7/Factory | Accompanied by 7 allies 7579 | -7/Factory | Repaired Imp. Medium Armor Plating 7615 | -7/Factory | Core integrity fell below 50% 7627 | -7/Factory | Garrison activated, responded to threat 7865 | -7/Factory | Fabricated Imp. Hacking Suite (x1) 7930 | -7/Factory | First assault squad dispatched 7963 | -7/Factory | Fabricated Imp. Hacking Suite? 8151 | -7/Factory | Discovered exit to Factory (range 13) 8410 | -7/Factory | Repaired Imp. Medium Armor Plating 8495 | -7/Factory | Fabricated Imp. Cesium-ion Thruster (x1) 8529 | -7/Factory | Central database locked down 8555 | -7/Factory | Identified exit to Lower Caves 8750 | -7/Factory | Discovered exit to Factory (range 15) 8991 | -7/Factory | Reached level 17 9227 | -7/Factory | Local fabrication network quarantined 9239 | -7/Factory | Fabricated O-24 Administrator (x1) 9241 | -7/Factory | Discovered exit to Factory (range 14) 9477 | -7/Factory | Identified exit to Garrison 9479 | -7/Factory | Entered Garrison 9479 | -7/Garrison | Accompanied by 5 allies 9506 | -7/Garrison | Triggered checkpoint 9536 | -7/Garrison | Triggered checkpoint 9564 | -7/Garrison | Triggered checkpoint 9620 | -7/Garrison | Triggered checkpoint 9638 | -7/Garrison | Triggered checkpoint 9644 | -7/Garrison | Destroyed 10 combat bots 9794 | -7/Garrison | Discovered exit to Factory (range 7) 9829 | -7/Garrison | Triggered checkpoint 9834 | -7/Garrison | Garrison Relay disabled 9885 | -7/Garrison | Discovered exit to Factory (range 12) 9905 | -7/Garrison | Garrison Relay disabled 9943 | -7/Garrison | Triggered checkpoint 10048 | -7/Garrison | Expanded RIF knowledge: Alert ID Control 10067 | -7/Garrison | Phase Generator disabled 10135 | -7/Garrison | Triggered checkpoint 10143 | -7/Garrison | Discovered exit to Factory (range 15) 10148 | -7/Garrison | Build established: Bothacker-Sprinter 10210 | -7/Garrison | Garrison Relay disabled 10259 | -7/Garrison | Garrison Relay disabled 10423 | -7/Garrison | Entered Factory 10423 | -6/Factory | Accompanied by 5 allies 10425 | -6/Factory | Reached level 18 10425 | -6/Factory | Upgraded with Weapon slot (x1) 10712 | -6/Factory | Discovered new exit (range 4) 10712 | -6/Factory | Identified exit to Lower Caves 10966 | -6/Factory | Fabricated Adv. Datajack (x1) 11123 | -6/Factory | First assault squad dispatched 11216 | -6/Factory | Build established: Hacker-Sprinter 11243 | -6/Factory | Discovered new exit (range 13) 11406 | -6/Factory | Identified exit to Factory 11454 | -6/Factory | Reached level 19 11514 | -6/Factory | Upgraded with Power slot (x1) 11616 | -6/Factory | Discovered new exit (range 15) 11641 | -6/Factory | Identified exit to Extension 11684 | -6/Factory | Discovered exit to Factory (range 12) 11765 | -6/Factory | Spotted B-75 Beast 11876 | -6/Factory | Fabricated Adv. Hacking Suite (x1) 11931 | -6/Factory | Fabricated Adv. Hacking Suite (x1) 12001 | -6/Factory | Fabricated Cld. Deuterium Engine (x1) 12077 | -6/Factory | Discovered exit to Extension (range 5) 12237 | -6/Factory | Found Exp. Signal Interpreter 12324 | -6/Factory | Discovered exit to Lower Caves (range 8) 12416 | -6/Factory | Discovered exit to Factory (range 10) 12676 | -6/Factory | Destroyed 7 combat bots 12725 | -6/Factory | Repaired Broken Cld. Deuterium Engine 12954 | -6/Factory | Central database locked down 13090 | -6/Factory | Discovered exit to Factory (range 16) 13103 | -6/Factory | Identified exit to Garrison 13105 | -6/Factory | Entered Garrison 13107 | -6/Garrison | Expanded RIF knowledge: Autooverride 13107 | -6/Garrison | Reached level 20 13150 | -6/Garrison | Triggered checkpoint 13159 | -6/Garrison | Garrison Relay disabled 13270 | -6/Garrison | Spotted B-75 Beast 13270 | -6/Garrison | Triggered checkpoint 13287 | -6/Garrison | Triggered checkpoint 13288 | -6/Garrison | Destroyed B-75 Beast 13378 | -6/Garrison | Triggered checkpoint 13404 | -6/Garrison | Discovered new exit (range 12) 13431 | -6/Garrison | Identified exit to Factory 13440 | -6/Garrison | Garrison Relay disabled 13446 | -6/Garrison | Triggered checkpoint 13571 | -6/Garrison | Discovered exit to Factory (range 10) 13584 | -6/Garrison | Triggered checkpoint 13614 | -6/Garrison | Garrison Relay disabled 13690 | -6/Garrison | Garrison Relay disabled 13694 | -6/Garrison | Triggered checkpoint 13711 | -6/Garrison | Discovered exit to Factory (range 14) 14068 | -6/Garrison | Phase Generator disabled 14070 | -6/Garrison | Entered Factory 14364 | -6/Factory | Local fabrication network quarantined 14391 | -6/Factory | Fabricated Biomechanical Wings (x1) 14420 | -6/Factory | First assault squad dispatched 14583 | -6/Factory | Discovered exit to Factory (range 35) 14586 | -6/Factory | Discovered exit to Lower Caves (range 16) 14721 | -6/Factory | Identified exit to Garrison 14737 | -6/Factory | Entered Garrison 14737 | -6/Garrison | Accompanied by 2 allies 14750 | -6/Garrison | Triggered checkpoint 14787 | -6/Garrison | Garrison Relay disabled 14843 | -6/Garrison | Triggered checkpoint 14868 | -6/Garrison | Triggered checkpoint 14884 | -6/Garrison | Core integrity fell below 50% 14948 | -6/Garrison | Triggered checkpoint 14987 | -6/Garrison | Garrison Relay disabled 15016 | -6/Garrison | Discovered exit to Factory (range 12) 15021 | -6/Garrison | Expanded RIF knowledge: Structural Interface 15036 | -6/Garrison | Triggered checkpoint 15131 | -6/Garrison | Discovered exit to Factory (range 15) 15143 | -6/Garrison | Garrison Relay disabled 15162 | -6/Garrison | Discovered exit to Factory (range 9) 15168 | -6/Garrison | Triggered checkpoint 15174 | -6/Garrison | Triggered checkpoint 15208 | -6/Garrison | Garrison Relay disabled 15297 | -6/Garrison | Reached level 21 15300 | -6/Garrison | Upgraded with Utility slot (x1) 15428 | -6/Garrison | Entered Factory 15460 | -5/Factory | Build established: Botlord-Sprinter 15608 | -5/Factory | Core integrity fell below 50% 15768 | -5/Factory | Crushed by falling debris 15784 | -5/Factory | Identified exit to Garrison 15803 | -5/Factory | Entered Garrison 15803 | -5/Garrison | Accompanied by 1 ally 15805 | -5/Garrison | Expanded RIF knowledge: Coupler Efficiency 15805 | -5/Garrison | Reached level 22 15812 | -5/Garrison | Garrison Relay disabled 15816 | -5/Garrison | Triggered checkpoint 16021 | -5/Garrison | Discovered new exit (range 10) 16065 | -5/Garrison | Identified exit to Factory 16076 | -5/Garrison | Triggered checkpoint 16087 | -5/Garrison | Garrison Relay disabled 16111 | -5/Garrison | Lost 3 parts (1u2w) 16160 | -5/Garrison | Triggered checkpoint 16201 | -5/Garrison | Discovered exit to Factory (range 3) 16207 | -5/Garrison | Garrison Relay disabled 16262 | -5/Garrison | Triggered checkpoint 16272 | -5/Garrison | Triggered checkpoint 16318 | -5/Garrison | Triggered checkpoint 16352 | -5/Garrison | Garrison Relay disabled 16462 | -5/Garrison | Discovered exit to Factory (range 14) 16490 | -5/Garrison | Triggered checkpoint 16588 | -5/Garrison | Triggered checkpoint 16781 | -5/Garrison | Entered Factory 16782 | -4/Factory | Core integrity fell below 50% 16783 | -4/Factory | Reached level 23 16898 | -4/Factory | Repaired Adv. Datajack 16906 | -4/Factory | Found Prototype Processor 16906 | -4/Factory | Identified Exp. Targeting Computer 17038 | -4/Factory | Core integrity fell below 20% 17296 | -4/Factory | Discovered new exit (range 6) 17298 | -4/Factory | Identified exit to Upper Caves 17324 | -4/Factory | Spotted B-86 Titan 17397 | -4/Factory | Reached level 24 17411 | -4/Factory | Upgraded with Propulsion slot (x1) 17547 | -4/Factory | Fabricated Q-thruster? 17625 | -4/Factory | Fabricated Adv. Sensor Array (x1) 17842 | -4/Factory | Fabricated G-50 Soldier (x3) 17847 | -4/Factory | P-70 Sage assimilated allied Soldier 7c 17856 | -4/Factory | Discovered new exit (range 16) 17890 | -4/Factory | Identified exit to Research 17911 | -4/Factory | Discovered exit to Research (range 15) 17991 | -4/Factory | Discovered exit to Upper Caves (range 3) 18026 | -4/Factory | Identified exit to Garrison 18027 | -4/Factory | Entered Garrison 18047 | -4/Garrison | Build established: Wizard-Sprinter 18050 | -4/Garrison | Garrison Relay disabled 18058 | -4/Garrison | Spotted B-86 Titan 18213 | -4/Garrison | Assimilated Titan 7a with formatsys_high 18222 | -4/Garrison | Triggered checkpoint 18222 | -4/Garrison | Triggered checkpoint 18274 | -4/Garrison | Discovered exit to Research (range 11) 18282 | -4/Garrison | Triggered checkpoint 18308 | -4/Garrison | Garrison Relay disabled 18331 | -4/Garrison | Discovered exit to Research (range 15) 18358 | -4/Garrison | Reached level 25 18461 | -4/Garrison | Expanded RIF knowledge: Autoassimilate 18502 | -4/Garrison | Triggered checkpoint 18505 | -4/Garrison | Garrison Relay disabled 18540 | -4/Garrison | Triggered checkpoint 18555 | -4/Garrison | Discovered exit to Research (range 9) 18600 | -4/Garrison | Triggered checkpoint 18666 | -4/Garrison | Triggered checkpoint 18725 | -4/Garrison | Garrison Relay disabled 18826 | -4/Garrison | Entered Research 18826 | -3/Research | Accompanied by 4 allies 18827 | -3/Research | Core integrity fell below 50% 18828 | -3/Research | Reached level 26 18900 | -3/Research | Build established: Botlord-Sprinter 18978 | -3/Research | Garrison activated, responded to threat 19000 | -3/Research | Found Prototype Hackware 19000 | -3/Research | Identified Exp. System Shield 19038 | -3/Research | Repaired Hvy. Disruptor Cannon 19076 | -3/Research | Reached level 27 19099 | -3/Research | Repaired Broken Cld. Impulse Thruster 19144 | -3/Research | Garrison activated, responded to threat 19147 | -3/Research | P-80 Master assimilated hostile G-67 Veteran 19196 | -3/Research | Discovered new exit (range 4) 19198 | -3/Research | Identified exit to Research 19200 | -3/Research | Upgraded with Utility slot (x1) 19367 | -3/Research | Found Enh. Force Lance 19369 | -3/Research | Found Enh. Force Lance 19410 | -3/Research | Build established: Wizard-Sprinter 19514 | -3/Research | Fabricated Cld. Fission Core (x1) 19559 | -3/Research | Discovered new exit (range 10) 19735 | -3/Research | Found Imp. Powered Armor 19846 | -3/Research | P-80 Master assimilated allied Veteran 8a 19919 | -3/Research | Reached level 28 20069 | -3/Research | Identified exit to Garrison 20070 | -3/Research | Entered Garrison 20297 | -3/Garrison | Spotted B-86 Titan 20298 | -3/Garrison | Autoassimilated Titan 8a with RIF 20308 | -3/Garrison | Triggered checkpoint 20323 | -3/Garrison | Triggered checkpoint 20366 | -3/Garrison | Triggered checkpoint 20397 | -3/Garrison | Triggered checkpoint 20436 | -3/Garrison | Triggered checkpoint 20529 | -3/Garrison | Discovered new exit (range 14) 20544 | -3/Garrison | Garrison Relay disabled 20565 | -3/Garrison | Discovered new exit (range 13) 20571 | -3/Garrison | Identified exit to Research 20580 | -3/Garrison | Garrison Relay disabled 20636 | -3/Garrison | Discovered exit to Research (range 3) 20638 | -3/Garrison | Expanded RIF knowledge: Coupler Efficiency 20650 | -3/Garrison | Garrison Relay disabled 20732 | -3/Garrison | Garrison Relay disabled 20740 | -3/Garrison | Triggered checkpoint 20871 | -3/Garrison | Build established: Botlord-Sprinter 20890 | -3/Garrison | Entered Research 20890 | -3/Research | Accompanied by 2 allies 20900 | -3/Research | Reached level 29 20980 | -3/Research | Discovered new exit (range 15) 21002 | -3/Research | Found Prototype Processor 21002 | -3/Research | Identified Spectral Analyzer 21181 | -3/Research | First assault squad dispatched 21266 | -3/Research | Discovered new exit (range 15) 21323 | -3/Research | Crushed by falling debris 21332 | -3/Research | System corruption reached 10% 21338 | -3/Research | Identified exit to Quarantine 21415 | -3/Research | Crushed by falling debris 21448 | -3/Research | Lost 4 parts (3u1w) 21491 | -3/Research | Found Gamma Bomb Array 21667 | -3/Research | Found Prototype Device 21667 | -3/Research | Identified EM Disruption Field 21747 | -3/Research | Identified exit to Garrison 21748 | -3/Research | Entered Garrison 22104 | -3/Garrison | Triggered checkpoint 22140 | -3/Garrison | Garrison Relay disabled 22232 | -3/Garrison | P-80 Master assimilated allied Veteran 8m 22236 | -3/Garrison | Triggered checkpoint 22308 | -3/Garrison | Triggered checkpoint 22338 | -3/Garrison | Garrison Relay disabled 23396 | -3/Garrison | Triggered checkpoint 23406 | -3/Garrison | Discovered exit to Research (range 3) 23418 | -3/Garrison | Triggered checkpoint 23456 | -3/Garrison | Discovered exit to Research (range 7) 23459 | -3/Garrison | Expanded RIF knowledge: Crosswire 23492 | -3/Garrison | Triggered checkpoint 23502 | -3/Garrison | Garrison Relay disabled 23528 | -3/Garrison | Triggered checkpoint 23548 | -3/Garrison | Discovered exit to Research (range 7) 23568 | -3/Garrison | Triggered checkpoint 23572 | -3/Garrison | Garrison Relay disabled 23764 | -3/Garrison | Entered Research 23764 | -2/Research | Accompanied by 11 allies 23766 | -2/Research | Reached level 30 23801 | -2/Research | Spotted B-90 Cyclops 23802 | -2/Research | Assimilated Cyclops 9a with formatsys_high 23900 | -2/Research | Spotted B-90 Cyclops 23900 | -2/Research | Assimilated Cyclops 9b with formatsys_high 23909 | -2/Research | Adv. Hacking Suite fried by hacking feedback 23984 | -2/Research | Discovered new exit (range 16) 24009 | -2/Research | Core integrity fell below 50% 24050 | -2/Research | Identified exit to Access 24137 | -2/Research | Reached level 31 24138 | -2/Research | Upgraded with Utility slot (x1) 24459 | -2/Research | Repaired Exp. Power Amplifier 24465 | -2/Research | Found Unknown Protection 24465 | -2/Research | Identified Powered Armor 24735 | -2/Research | Discovered new exit (range 14) 24748 | -2/Research | Identified exit to Testing 24885 | -2/Research | Fabricated Imp. Q-thruster (x1) 24963 | -2/Research | Fabricated Imp. Q-thruster (x1) 25037 | -2/Research | Fabricated Imp. Q-thruster (x1) 25077 | -2/Research | Build established: Commander-Sprinter 25083 | -2/Research | Found Prototype Device 25083 | -2/Research | Identified Exp. Force Field 25184 | -2/Research | Local fabrication network quarantined 25206 | -2/Research | Spotted B-90 Cyclops 25207 | -2/Research | Assimilated Cyclops 9c with formatsys_high 25271 | -2/Research | Spotted B-90 Cyclops 25271 | -2/Research | Assimilated Cyclops 9d with formatsys_high 25302 | -2/Research | First assault squad dispatched 25359 | -2/Research | Found Point Singularity Launcher 25363 | -2/Research | Reached level 32 25483 | -2/Research | Build established: Botlord-Sprinter 25503 | -2/Research | Discovered exit to Testing (range 6) 25616 | -2/Research | Found Prototype Launcher 25616 | -2/Research | Identified Hellfire Missile Launcher 25643 | -2/Research | Identified exit to Garrison 25643 | -2/Research | Entered Garrison 25690 | -2/Garrison | Garrison Relay disabled 25694 | -2/Garrison | Triggered checkpoint 25736 | -2/Garrison | Spotted B-90 Cyclops 25737 | -2/Garrison | Assimilated Cyclops 9e with formatsys_high 25744 | -2/Garrison | Triggered checkpoint 25760 | -2/Garrison | Triggered checkpoint 25864 | -2/Garrison | Garrison Relay disabled 25872 | -2/Garrison | Discovered exit to Access (range 13) 25907 | -2/Garrison | Discovered exit to Access (range 13) 26016 | -2/Garrison | Triggered checkpoint 26042 | -2/Garrison | Garrison Relay disabled 26062 | -2/Garrison | Triggered checkpoint 26089 | -2/Garrison | Discovered exit to Access (range 10) 26092 | -2/Garrison | Expanded RIF knowledge: Coupler Efficiency 26108 | -2/Garrison | Triggered checkpoint 26150 | -2/Garrison | Triggered checkpoint 26167 | -2/Garrison | Garrison Relay disabled 26200 | -2/Garrison | Triggered checkpoint 26335 | -2/Garrison | Entered Access 26335 | -1/Access | Accompanied by 11 allies 26337 | -1/Access | Reached level 33 26542 | -1/Access | Spotted B-99 Colossus 26547 | -1/Access | Reached level 34 26578 | -1/Access | Allies destroyed B-99 Colossus 26581 | -1/Access | Found Prototype Ballistic Gun 26581 | -1/Access | Identified Multirail 26585 | -1/Access | First assault squad dispatched 26888 | -1/Access | P-80 Master assimilated allied Warden 9d 26922 | -1/Access | Found Exp. Hacking Suite 27030 | -1/Access | Spotted B-99 Colossus 27203 | -1/Access | Identified exit to Garrison 27235 | -1/Access | Crushed by falling debris 27238 | -1/Access | Core integrity fell below 50% 27247 | -1/Access | Reached level 35 27300 | -1/Access | Upgraded with Utility slot (x1) 27334 | -1/Access | Discovered new exit (range 4) 27336 | -1/Access | Identified exit to Surface 27350 | -1/Access | Spotted B-99 Colossus 27353 | -1/Access | Spotted B-99 Colossus 27563 | -1/Access | Energy Cycler disabled 27647 | -1/Access | Fabricated G-50 Soldier (x3) 27697 | -1/Access | Fabricated G-50 Soldier (x3) 27707 | -1/Access | Discovered new exit (range 9) 27708 | -1/Access | Identified exit to Command 27766 | -1/Access | Entered Command 27766 | -1/Command | Accompanied by 7 allies 27994 | -1/Command | Spotted B-99 Colossus 28110 | -1/Command | Disengaged cave seal 28110 | -1/Command | Wild derelicts emerged from the dark tunnel 28239 | -1/Command | Reached level 36 28240 | -1/Command | Upgraded with Weapon slot (x1) 28297 | -1/Command | Disengaged cave seal 28370 | -1/Command | Phase Generator disabled 28386 | -1/Command | Spotted Alpha 7 28440 | -1/Command | Spotted B-99 Colossus 28463 | -1/Command | Spotted Executioner 28463 | -1/Command | Spotted Executioner 28463 | -1/Command | Spotted Executioner 28463 | -1/Command | Spotted Striker 28463 | -1/Command | Spotted Striker 28463 | -1/Command | Spotted Alpha 7 28463 | -1/Command | Spotted Executioner 28463 | -1/Command | Spotted B-99 Colossus 28463 | *** | Escaped! Last Messages --------------- 28448_ Field strength at 70. 28449_ Field strength at 65. 28450_ Field strength at 60. 28451_ Field strength at 55. 28452_ Field strength at 50. 28453_ Field strength at 45. 28454_ Field strength at 40. 28455_ Field strength at 35. 28456_ Field strength at 30. 28457_ Field strength at 25. 28458_ Field strength at 20. 28459_ Knocked back. 28459_ Slug penetrates Access Shell. 28459_ Slug penetrates Wall. 28461_ System corrupted: Matter fused (-9). 28463_ Penetrated by Slug. 28463_ Slug penetrates Access Shell. 28463_ Penetrated by Slug. 28463_ Slug penetrates Access Shell. [Achievement: Overachiever] Map ----- +----------------------------------------------------+ | | | | | ???????#############?????????????????????????????? | | ???????# #???????????##############????? | | ???????# #???????????# "" #????? | | ???????# "" "" #???????????# """" #????? | | ???????# ""T"" #???????????# "" " #????? | | ???????# """ !#???????????# "" ###### | | ???????# #???????????# # | | ???????# #???????????# + | | ???????#### ##+#####???????????# # | | ?????????# #???????????????# + | | ?????????# #???###?????????# # # | | ?????????# ##### ########### # # | | ?????????# + # # | | ????????## %######## ######## # # # | | ????????# #?????# #??????# ############## # | | ????????# Y #?????#;#??????####????????????# # | | ????????# #?????#;############???????????# # | | ????????# #?????# #???????????# # | | ????????## ##?????# BB #?#?#?##????# # | | ?????????# #??????# BB # # #K#7###?# # | | ?????????# #??????# """" E ### # | | ?????????# #??????# " " E /B | | ?????????# #??????# ^" "" " /B | | ?????????# #??????# ^ @" % | | ?????????# #?????#; " + | | ?????w???# %#?????## ^"""""" ## ## | | ?????????# #??????# ? # #E#K#7#### | | ?????????# #??????# ??????????#????# | | ?????????# #??????# ??????????????????# "" | | ?????????# #??????## ####?????????????????# """" | | ?????????# #???????##?????????????????????# """" | | ?????????# #########################??????# "" | | ?????????# # # #??????# | | ?????????# # # #??????# | | ?????????# # """"" + | #??????# | | ?????????# # ""T"" # ######## | | ?????????# # # ## # | | ?????????# # # ## # | | ?????????#!M#######+######## ## # | | ?????????#[%##### ####### ## # | | ?????????#[!%=[ ## ####+###### # | | ?????????#! = *M ! # ######+ | | ?????????# =##### + + | | ?????????# #???## | ########### # | | ?????????# #????# #?????????# # """ | | ?????????# #????# !=! #?????????# # ""T" | | ?????????# #????# !!! #?????????# # "" " | | ?????????# #???## =!! #?????????# # | +----------------------------------------------------+ Best States ------------- Heat Dissipation 110 Energy Generation 81 Energy Capacity 2440 Matter Stores 400 Matter Capacity 400 Sight Range 17 Robot Scan Range 44 Terrain Scan Range 16 Terrain Scan Density 185 ECM Strength 2 Jamming Range 16 Power Amplification 70 Additional Mass Support 12 EM Shielding 4 Armor Coverage 400 Resistance: KI 30 Resistance: TH 30 Resistance: EX 5 Resistance: EM 15 Propulsion Shielding 33 Weapon Shielding 66 Phase Shifting 15 Evasion (%) 94 Targeting Accuracy 8 Melee Accuracy 5 Recoil Reduction 1 Offensive Hacking 53 Defensive Hacking 31 Item Schematics ----------------- Bore Cannon | -8/Materials | Scanalyzed Enh. Autogun | -8/Materials | Scanalyzed Imp. VTOL Module | -8/Materials | Scanalyzed Imp. Hacking Suite | -7/Factory | Hacked Prc. Shock Rifle | -7/Factory | Scanalyzed Cld. Deuterium Engine | -7/Factory | Scanalyzed Imp. Cesium-ion Thruster | -7/Factory | Scanalyzed Dynamic Insulation System | -7/Factory | Extracted Imp. Weapon Shielding | -7/Factory | Extracted Arm. Treads | -7/Factory | Extracted Propulsion Shielding | -7/Factory | Extracted System Shield | -7/Factory | Scanalyzed Phase Cannon | -7/Factory | Hacked Force Rifle | -7/Factory | Hacked Tri-rail Accelerator | -7/Factory | Hacked Imp. Datajack | -7/Factory | Scanalyzed Remote Datajack | -7/Factory | Scanalyzed Great Axe | -7/Factory | Extracted Hvy. Deuterium Engine | -7/Factory | Extracted Imp. Medium Armor Plating | -7/Factory | Extracted Imp. EM Pulse Cannon | -7/Factory | Extracted Imp. Heat Sink | -7/Factory | Extracted Arc Projector | -7/Factory | Extracted Spread Laser | -7/Factory | Extracted Cmb. Gravmag System | -7/Factory | Hacked Adv. Datajack | -6/Factory | Hacked Imp. Gravmag System | -6/Factory | Scanalyzed Nanoactuators | -6/Factory | Hacked Adv. Hacking Suite | -6/Factory | Hacked Field Propulsion Drive | -6/Factory | Hacked Field Propulsion Array | -6/Factory | Hacked Cloaking Device | -6/Factory | Scanalyzed Terrain Scan Processor | -6/Factory | Extracted Shield Generator | -6/Factory | Extracted Biomechanical Wings | -6/Factory | Hacked F-cell Engine | -6/Factory | Scanalyzed Antimatter Reactor | -6/Factory | Hacked Adv. Focal Shield | -6/Factory | Hacked Point Defense Array | -5/Factory | Hacked Centrium Wheel | -4/Factory | Scanalyzed Adv. Sensor Array | -4/Factory | Hacked Exp. Sensor Array | -4/Factory | Hacked Q-thruster | -4/Factory | Hacked Adv. Force Field | -4/Factory | Hacked Cld. Fission Core | -4/Factory | Hacked Force Lance | -4/Factory | Scanalyzed Lgt. Antimatter Reactor | -4/Factory | Scanalyzed Hvy. Treads | -4/Factory | Extracted Adv. Variable Charge Gun | -4/Factory | Extracted Quantum Reactor | -3/Research | Hacked Imp. Powered Armor | -3/Research | Scanalyzed Imp. System Restoration Module | -3/Research | Scanalyzed Adv. Weight Redist. System | -3/Research | Scanalyzed Disruptor Cannon | -3/Research | Extracted Adv. Core Analyzer | -3/Research | Extracted Thermal Shield | -3/Research | Extracted Hvy. Neutron Cannon | -3/Research | Extracted Gravity Neutralizing Apparatus | -3/Research | Extracted Imp. Plasma Cutter | -3/Research | Extracted Imp. Melee Analysis Suite | -3/Research | Extracted Imp. Component Analysis Suite | -3/Research | Extracted Adv. Powered Armor | -3/Research | Hacked Exp. Hacking Suite | -3/Research | Hacked Imp. Q-thruster | -2/Research | Scanalyzed Adv. Phase Shifter | -1/Access | Scanalyzed Adv. Thermal Shield | -1/Access | Extracted Com. Mass Driver | -1/Access | Extracted Impulse Thruster | -1/Access | Extracted Phase Shifter | -1/Access | Extracted Enh. Coil Gun | -1/Access | Extracted Centrium Leg | -1/Access | Extracted Arm. Heavy Treads | -1/Access | Extracted Adv. ECM Suite | -1/Access | Extracted Exp. Core Analyzer | -1/Access | Extracted Com. Matter Pod | -1/Access | Extracted Adv. Transmission Jammer | -1/Access | Extracted Corruption Screen | -1/Access | Extracted Adv. Heavy Treads | -1/Access | Extracted Exp. System Shield | -1/Access | Hacked Dimensional Manipulator | -1/Command | Hacked Cld. Q-thruster | -1/Command | Hacked Robot Schematics ------------------ O-24 Administrator | -7/Factory | Hacked G-50 Soldier | -6/Factory | Hacked C-65 Expert | -1/Access | Hacked S-43 Plague | -1/Command | Hacked Fabricated ------------ Imp. VTOL Module | x1 | -7/Factory X-62 Marksman | x2 | -7/Factory | Preloaded X-62 Marksman | x2 | -7/Factory | Preloaded Imp. Hacking Suite | x1 | -7/Factory Imp. Hacking Suite | x1 | -7/Factory Imp. Cesium-ion Thruster | x1 | -7/Factory O-24 Administrator | x1 | -7/Factory Adv. Datajack | x1 | -6/Factory Adv. Hacking Suite | x1 | -6/Factory Adv. Hacking Suite | x1 | -6/Factory Cld. Deuterium Engine | x1 | -6/Factory Biomechanical Wings | x1 | -6/Factory Q-thruster | x2 | -4/Factory Adv. Sensor Array | x1 | -4/Factory G-50 Soldier | x3 | -4/Factory Cld. Fission Core | x1 | -3/Research Imp. Q-thruster | x1 | -2/Research Imp. Q-thruster | x1 | -2/Research Imp. Q-thruster | x1 | -2/Research G-50 Soldier | x3 | -1/Access G-50 Soldier | x3 | -1/Access Alien Tech Used ----------------- None Achievements -------------- Beloved Collateral Damage Error 47 Generalissimo Hehehe Infiltrator Knowing Is Half The Battle Overachiever Pwned War Machine Watch This! Challenges ------------ None RPGLIKE | -11 -10 -10 -10 -9 -8 -8 -8 -8 -7 -7 -7 -7 -6 -6 -6 -6 -5 -5 -4 -4 -3 -3 -3 -3 -2 -2 -1 -1 --------- Run | Scr Mat Min Exi Min Mat Gar Mat Gar Fac Gar Fac Gar Fac Gar Fac Gar Fac Gar Fac Gar Res Gar Res Gar Res Gar Acc Com Levels Raised 35 | . . 1 . 1 1 3 2 3 2 2 1 . 2 1 . 1 . 1 2 1 3 . 1 . 3 . 3 1 XP Earned 55623 | 3000 1255 750 350 1150 1930 4164 2991 4195 3875 2485 1016 1111 2972 993 99 687 1142 1284 2741 1458 4025 1321 509 502 3624 1020 3667 1307 XP Spent 55475 | 2750 50 1300 . 1900 1470 4425 2535 4300 3400 3325 1470 . 2900 . . 3050 . 1000 3625 555 5370 . 800 . 3500 1750 4500 1500 Upgrades 82 | 5 1 3 . 2 8 9 7 4 2 4 3 . 4 . . 2 . 4 7 3 5 . 2 . 1 1 3 2 Power Slot 1 | . . . . . . . . . . . . . 1 . . . . . . . . . . . . . . . Propulsion Slot 4 | . . 1 . . . 1 . . 1 . . . . . . . . . 1 . . . . . . . . . Utility Slot 12 | 3 . . . 1 . 1 . 1 1 1 . . . . . 1 . . . . 1 . . . 1 . 1 . Weapon Slot 4 | . . . . 1 . . 1 . . . . . 1 . . . . . . . . . . . . . . 1 Core Integrity 18 | . . . . . 2 3 3 . . . 2 . . . . . . . 5 3 . . . . . . . . Heat Dissipation 9 | . . . . . 3 1 1 . . . . . . . . 1 . . . . 3 . . . . . . . Energy Generation 3 | . . 1 . . . . 2 . . . . . . . . . . . . . . . . . . . . . Mass Support 4 | 1 . . . . 1 . . 1 . . . . . . . . . . . . 1 . . . . . . . Inventory Capacity 7 | 1 . 1 . . . 1 . 1 . . 1 . . . . . . . 1 . . . . . . 1 . . Sight Range 1 | . . . . . . . . . . . . . . . . . . . . . . . . . . . . 1 Sensor Range 2 | . . . . . . . . . . 2 . . . . . . . . . . . . . . . . . . Terrain Scan Density 1 | . 1 . . . . . . . . . . . . . . . . . . . . . . . . . . . Ranged Accuracy 3 | . . . . . . 2 . . . . . . . . . . . . . . . . 1 . . . . . Melee Accuracy 1 | . . . . . . . . . . . . . . . . . . . . . . . 1 . . . . . Hack Attack % 3 | . . . . . 2 . . . . 1 . . . . . . . . . . . . . . . . . . Hack Defense % 3 | . . . . . . . . 1 . . . . 2 . . . . . . . . . . . . . . . KI Resistance % 3 | . . . . . . . . . . . . . . . . . . 2 . . . . . . . . 1 . TH Resistance % 2 | . . . . . . . . . . . . . . . . . . 2 . . . . . . . . . . EX Resistance % 1 | . . . . . . . . . . . . . . . . . . . . . . . . . . . 1 . Protomatter Created 6271 | . 55 50 . 116 . 230 410 161 201 235 145 650 448 297 . 247 121 237 297 249 236 412 352 61 301 343 139 278 Integrity Restored 21314 | . 135 150 . 252 . 588 1061 1168 527 757 627 1978 851 712 . 915 288 651 858 795 1543 1413 947 600 1844 414 1148 1092 Core 18647 | . 135 150 . 225 . 588 949 953 476 536 627 1437 616 494 . 915 288 651 858 795 1412 1162 884 600 1551 243 1057 1045 Parts 2667 | . . . . 27 . . 112 215 51 221 . 541 235 218 . . . . . . 131 251 63 . 293 171 91 47 Protomatter Decayed 5164 | . 87 . . 74 . 34 53 50 96 38 92 57 494 222 . 74 . 51 162 178 361 255 281 45 1001 338 834 287 Game ------ Seed TiamatCentriumPod Manual? 0 Play Time 16:06:25 Cumulative 57.2 hours Start 2020.03.22 @ 20:58:40 End 2020.03.24 @ 07:09:16 Sessions 3 Manual Loads 0 Difficulty Rogue Special Mode Winter2019/RPGLIKE Game No. 6 Rogue 6 Adventurer 0 Explorer 0 Win Type 0 Total 1 Types 1/0/0/0/0/0/0 Lore% 30 Gallery% 40 Achievement% 50 Wizard Run 0 Options --------- ASCII 1 Keyboard 1 Movement Numpad Keybinds 0 Fullscreen 1 Font 16/SmallcapsGlow Map View 75x55 Tactical HUD 1 Map Filters NONE Filters NONE Steam 1 RUN: d653180f-6270-4f39-91a7-318404e1d24e